Workbook

Sheet Dashboard
B2: INPUT
B3: Startpopulaties | C3: Beginwaarden | D3: Eigen invoer
B4: Aantal inwoners | C4: 33141 | D4: 33141
B5: Aantal huiskatten | C5: 6164 | D5: =N20 -> 6164
B6: Aantal zwerfkatten | C6: 1104 | D6: =N21 -> 1104
B7: % vruchtbare zwerfkatten | C7: 37 | D7: =N23 -> 37
B8: Aantal koloniekatten | C8: =ROUND(((1704+136)/(520504+1200))*$C$4,0) -> 117 | D8: =N22 -> 117
B9: Type habitat | D9: Alle
B10: Ingrepen via huiskatten | C10: Beginwaarden | D10: Eigen invoer
B11: Proportie vruchtbare huiskatten (in %) | C11: 0.12 | D11: 0.12
B12: Proportie gedumpte huiskatten die zwerfkat worden (in %) | C12: 0.05 | D12: 0.05
B13: Proportie verloren huiskatten weer bij eigenaar (in %) | C13: 0.05 | D13: 0.05
B14: Ingrepen via zwerfkatten | C14: Beginwaarden | D14: Eigen invoer
B15: Proportie gevangen zwerfkatten van totale zwerfkattenpopulatie (in %) | C15: 0 | D15: 0
B16: waarvan:
B17: Proportie zwerfkatten teruggeplaatst na steriel maken (in %) | C17: 0 | D17: 0 | G17: Overzicht veranderingen & kostprijs | K17: na 5 jaar | L17: na 10 jaar
B18: Proportie zwerfkatten teruggeplaatst na steriel maken als koloniekat (in %) | C18: 0 | D18: 0 | G18: % verandering zwerfkat populatie t.o.v. startpopulatie | K18: =IF($D$6=0,"nvt: geen startpop.",'Pop Model - do not touch'!G39-'Pop Model - do not touch'!B39) -> 90.74659346 | L18: =IF($D$6=0,"nvt: geen startpop.",'Pop Model - do not touch'!L39-'Pop Model - do not touch'!B39) -> 443.3783767
B19: Proportie zwerfkatten naar asiel (in %) | C19: 0 | D19: 0 | G19: % verandering koloniekat populatie t.o.v. startpopulatie | K19: =IF($D$8=0,"nvt: geen startpop.",'Pop Model - do not touch'!G40-'Pop Model - do not touch'!B40) -> -14.12659743 | L19: =IF($D$8=0,"nvt: geen startpop.",'Pop Model - do not touch'!L40-'Pop Model - do not touch'!B40) -> -26.25758731 | N19: Hidden rates for macro
B20: Proportie zwerfkatten geëuthanaseerd (in %) | C20: 0 | D20: 0 | E20: =IF(SUM(D17:D20)>100,"ERROR",SUM(D17:D20)) -> 0 | G20: % verandering welzijnsindex tov start | K20: ='Costs and welfare - dont touch'!G31 -> -0.5968167932 | L20: ='Costs and welfare - dont touch'!L31 -> -0.9690186542 | N20: =ROUND(0.186*$D$4,0) -> 6164
G21: % verandering hinderindex tov start | K21: ='Costs and welfare - dont touch'!G23 -> 26.19449075 | L21: ='Costs and welfare - dont touch'!L23 -> 129.0440919 | N21: =SUM('Rates - do not touch'!B5:B6) -> 1104
B22: Kosten voor ingrepen via zwerfkatten | C22: Beginwaarden | D22: Eigen invoer | E22: Van toepassing op | G22: Totale kost terugplaatsen na steriel maken (euro) | K22: =IF($D$33=0,SUM('Costs and welfare - dont touch'!$C$4:G$4),0) -> 0 | L22: =IF($D$33=0,SUM('Costs and welfare - dont touch'!$C$4:L$4),0) -> 0 | N22: =ROUND(((1704+136)/(520504+1200))*$D$4,0) -> 117
B23: Steriel maken (per kat in euro) | C23: =(39.25+77.95)/2 -> 58.6 | D23: 0 | E23: Alle | G23: Totale kost omzetten naar koloniekat (euro) | K23: =IF($D$33=0,SUM('Costs and welfare - dont touch'!$C$6:G$7),0) -> 0 | L23: =IF($D$33=0,SUM('Costs and welfare - dont touch'!$C$6:L$7),0) -> 0 | N23: 37
B24: Chip (per kat in euro) | C24: 23.6 | D24: 0 | E24: Alle | G24: Totale kost euthanasie (euro) | K24: =IF($D$33=0,SUM('Costs and welfare - dont touch'!$C$5:G$5),0) -> 0 | L24: =IF($D$33=0,SUM('Costs and welfare - dont touch'!$C$5:L$5),0) -> 0
B25: FIV/FELV test (per kat in euro) | C25: 27.2 | D25: 0 | E25: Alle | G25: Totale kost opname in asiel (euro) | K25: =IF($D$33=0,SUM('Costs and welfare - dont touch'!$C$8:G$8),0) -> 0 | L25: =IF($D$33=0,SUM('Costs and welfare - dont touch'!$C$8:L$8),0) -> 0
B26: Vaccinatie (per kat in euro) | C26: 13.94 | D26: 0 | E26: Alle | G26: Totale kost voor ingrepen via zwerfkatten (euro) | K26: =IF($D$33 = 0, SUM('Costs and welfare - dont touch'!$C$4:'Costs and welfare - dont touch'!G$8), SUM('Costs and welfare - dont touch'!$C$10:G$10)) -> 0 | L26: =IF($D$33 = 0, SUM('Costs and welfare - dont touch'!$C$4:'Costs and welfare - dont touch'!L$8), SUM('Costs and welfare - dont touch'!$C$10:L$10)) -> 0
B27: Ontwormen (per kat in euro) | C27: 10.93 | D27: 0 | E27: Alle
B28: Ontvlooien (per kat in euro) | C28: 12.74 | D28: 0 | E28: Alle | G28: Overzicht eenmalige kosten per kat naargelang ingreep (in euro)
B29: Ander (per kat in euro) | C29: 0 | D29: 0 | E29: Alle | G29: Kost terugplaatsen na steriel maken | K29: =SUM(SUMIFS($D$23:$D$29,$E$23:$E$29, {"Terugplaatsen","Alle"})) -> 0
B30: Opname in asiel: eenmalige plaatsingskost, excl. onderhoud (per kat in euro) | C30: 0 | D30: 0 | G30: Kost omzetten naar koloniekat (incl. steriel maken) | K30: =SUM(SUMIFS($D$23:$D$29,$E$23:$E$29, {"Koloniekat","Alle"})) -> 0
B31: Euthanasie (per kat in euro) | C31: 50 | D31: 0 | G31: Kost euthanasie | K31: =D31 -> 0
B32: ofwel: | D32: 0 | G32: Kost opname in asiel | K32: =$D$30 -> 0
B33: Kosten via contract (per kat in euro) | C33: 0 | D33: 0
B38: OUTPUT/RESULTATEN
B39: Jaren | C39: startsituatie | D39: 1 | E39: 2 | F39: 3 | G39: 4 | H39: 5 | I39: 6 | J39: 7 | K39: 8 | L39: 9 | M39: 10
B40: Populaties
B41: % zwerfkatten dat overblijft tov startpopulatie | C41: 100 | D41: =IF($D$6=0,"nvt: geen startpop.",'Pop Model - do not touch'!C39) -> 94.64675528 | E41: =IF($D$6=0,"nvt: geen startpop.",'Pop Model - do not touch'!D39) -> 112.9687263 | F41: =IF($D$6=0,"nvt: geen startpop.",'Pop Model - do not touch'!E39) -> 134.1686452 | G41: =IF($D$6=0,"nvt: geen startpop.",'Pop Model - do not touch'!F39) -> 159.4985722 | H41: =IF($D$6=0,"nvt: geen startpop.",'Pop Model - do not touch'!G39) -> 190.7465935 | I41: =IF($D$6=0,"nvt: geen startpop.",'Pop Model - do not touch'!H39) -> 230.0564068 | J41: =IF($D$6=0,"nvt: geen startpop.",'Pop Model - do not touch'!I39) -> 280.380891 | K41: =IF($D$6=0,"nvt: geen startpop.",'Pop Model - do not touch'!J39) -> 345.6638687 | L41: =IF($D$6=0,"nvt: geen startpop.",'Pop Model - do not touch'!K39) -> 431.0218096 | M41: =IF($D$6=0,"nvt: geen startpop.",'Pop Model - do not touch'!L39) -> 543.3783767
B42: % vruchtbare zwerfkatten tov startpopulatie | C42: 100 | D42: =IF((OR($D$7=0,$D$6=0)),"nvt: geen startpop.",'Pop Model - do not touch'!C42) -> 144.1176471 | E42: =IF((OR($D$7=0,$D$6=0)),"nvt: geen startpop.",'Pop Model - do not touch'!D42) -> 202.9411765 | F42: =IF((OR($D$7=0,$D$6=0)),"nvt: geen startpop.",'Pop Model - do not touch'!E42) -> 281.372549 | G42: =IF((OR($D$7=0,$D$6=0)),"nvt: geen startpop.",'Pop Model - do not touch'!F42) -> 385.7843137 | H42: =IF((OR($D$7=0,$D$6=0)),"nvt: geen startpop.",'Pop Model - do not touch'!G42) -> 525.4901961 | I42: =IF((OR($D$7=0,$D$6=0)),"nvt: geen startpop.",'Pop Model - do not touch'!H42) -> 711.7647059 | J42: =IF((OR($D$7=0,$D$6=0)),"nvt: geen startpop.",'Pop Model - do not touch'!I42) -> 960.2941176 | K42: =IF((OR($D$7=0,$D$6=0)),"nvt: geen startpop.",'Pop Model - do not touch'!J42) -> 1292.156863 | L42: =IF((OR($D$7=0,$D$6=0)),"nvt: geen startpop.",'Pop Model - do not touch'!K42) -> 1734.803922 | M42: =IF((OR($D$7=0,$D$6=0)),"nvt: geen startpop.",'Pop Model - do not touch'!L42) -> 2325.490196
B43: % koloniekat tov startpopulatie | C43: 100 | D43: =IF($D$8=0,"nvt: geen startpop.",'Pop Model - do not touch'!C40) -> 97 | E43: =IF($D$8=0,"nvt: geen startpop.",'Pop Model - do not touch'!D40) -> 94.09 | F43: =IF($D$8=0,"nvt: geen startpop.",'Pop Model - do not touch'!E40) -> 91.2673 | G43: =IF($D$8=0,"nvt: geen startpop.",'Pop Model - do not touch'!F40) -> 88.529281 | H43: =IF($D$8=0,"nvt: geen startpop.",'Pop Model - do not touch'!G40) -> 85.87340257 | I43: =IF($D$8=0,"nvt: geen startpop.",'Pop Model - do not touch'!H40) -> 83.29720049 | J43: =IF($D$8=0,"nvt: geen startpop.",'Pop Model - do not touch'!I40) -> 80.79828448 | K43: =IF($D$8=0,"nvt: geen startpop.",'Pop Model - do not touch'!J40) -> 78.37433594 | L43: =IF($D$8=0,"nvt: geen startpop.",'Pop Model - do not touch'!K40) -> 76.02310587 | M43: =IF($D$8=0,"nvt: geen startpop.",'Pop Model - do not touch'!L40) -> 73.74241269
B44: Cumulatief totaal koloniekatten | C44: =D8 -> 117 | D44: ='Pop Model - do not touch'!C11+'Pop Model - do not touch'!C18 -> 0 | E44: =E45+D44 -> 0 | F44: =F45+E44 -> 0 | G44: 0 | H44: 0 | I44: 0 | J44: 0 | K44: 0 | L44: 0 | M44: 0
B45: Aantal nieuwe koloniekatten (per jaar) | C45: nvt | D45: ='Pop Model - do not touch'!C18+'Pop Model - do not touch'!C11 -> 0 | E45: ='Pop Model - do not touch'!D18+'Pop Model - do not touch'!D11 -> 0 | F45: ='Pop Model - do not touch'!E18+'Pop Model - do not touch'!E11 -> 0 | G45: ='Pop Model - do not touch'!F18+'Pop Model - do not touch'!F11 -> 0 | H45: ='Pop Model - do not touch'!G18+'Pop Model - do not touch'!G11 -> 0 | I45: ='Pop Model - do not touch'!H18+'Pop Model - do not touch'!H11 -> 0 | J45: ='Pop Model - do not touch'!I18+'Pop Model - do not touch'!I11 -> 0 | K45: ='Pop Model - do not touch'!J18+'Pop Model - do not touch'!J11 -> 0 | L45: ='Pop Model - do not touch'!K18+'Pop Model - do not touch'!K11 -> 0 | M45: ='Pop Model - do not touch'!L18+'Pop Model - do not touch'!L11 -> 0
B46: Cumulatief totaal geëuthanaseerde zwerfkatten | C46: nvt | D46: ='Pop Model - do not touch'!C30 -> 0 | E46: ='Pop Model - do not touch'!D30 -> 0 | F46: ='Pop Model - do not touch'!E30 -> 0 | G46: ='Pop Model - do not touch'!F30 -> 0 | H46: ='Pop Model - do not touch'!G30 -> 0 | I46: ='Pop Model - do not touch'!H30 -> 0 | J46: ='Pop Model - do not touch'!I30 -> 0 | K46: ='Pop Model - do not touch'!J30 -> 0 | L46: ='Pop Model - do not touch'!K30 -> 0 | M46: ='Pop Model - do not touch'!L30 -> 0
B47: Aantal geëuthanaseerde zwerfkatten (per jaar) | C47: nvt | D47: ='Pop Model - do not touch'!C29 -> 0 | E47: ='Pop Model - do not touch'!D29 -> 0 | F47: ='Pop Model - do not touch'!E29 -> 0 | G47: ='Pop Model - do not touch'!F29 -> 0 | H47: ='Pop Model - do not touch'!G29 -> 0 | I47: ='Pop Model - do not touch'!H29 -> 0 | J47: ='Pop Model - do not touch'!I29 -> 0 | K47: ='Pop Model - do not touch'!J29 -> 0 | L47: ='Pop Model - do not touch'!K29 -> 0 | M47: ='Pop Model - do not touch'!L29 -> 0
B48: Cumulatief totaal aantal katten naar asiel | C48: nvt | D48: ='Pop Model - do not touch'!C32 -> 0 | E48: ='Pop Model - do not touch'!D32 -> 0 | F48: ='Pop Model - do not touch'!E32 -> 0 | G48: ='Pop Model - do not touch'!F32 -> 0 | H48: ='Pop Model - do not touch'!G32 -> 0 | I48: ='Pop Model - do not touch'!H32 -> 0 | J48: ='Pop Model - do not touch'!I32 -> 0 | K48: ='Pop Model - do not touch'!J32 -> 0 | L48: ='Pop Model - do not touch'!K32 -> 0 | M48: ='Pop Model - do not touch'!L32 -> 0
B49: Aantal katten naar asiel (per jaar) | C49: nvt | D49: ='Pop Model - do not touch'!C31 -> 0 | E49: ='Pop Model - do not touch'!D31 -> 0 | F49: ='Pop Model - do not touch'!E31 -> 0 | G49: ='Pop Model - do not touch'!F31 -> 0 | H49: ='Pop Model - do not touch'!G31 -> 0 | I49: ='Pop Model - do not touch'!H31 -> 0 | J49: ='Pop Model - do not touch'!I31 -> 0 | K49: ='Pop Model - do not touch'!J31 -> 0 | L49: ='Pop Model - do not touch'!K31 -> 0 | M49: ='Pop Model - do not touch'!L31 -> 0
B50: Cumulatief totaal teruggeplaatste zwerfkatten na steriel maken | C50: nvt | D50: ='Pop Model - do not touch'!C23 -> 0 | E50: ='Pop Model - do not touch'!D23 -> 0 | F50: ='Pop Model - do not touch'!E23 -> 0 | G50: ='Pop Model - do not touch'!F23 -> 0 | H50: ='Pop Model - do not touch'!G23 -> 0 | I50: ='Pop Model - do not touch'!H23 -> 0 | J50: ='Pop Model - do not touch'!I23 -> 0 | K50: ='Pop Model - do not touch'!J23 -> 0 | L50: ='Pop Model - do not touch'!K23 -> 0 | M50: ='Pop Model - do not touch'!L23 -> 0
B51: Aantal teruggeplaatste steriele zwerfkatten (per jaar) | C51: nvt | D51: ='Pop Model - do not touch'!C22 -> 0 | E51: ='Pop Model - do not touch'!D22 -> 0 | F51: ='Pop Model - do not touch'!E22 -> 0 | G51: ='Pop Model - do not touch'!F22 -> 0 | H51: ='Pop Model - do not touch'!G22 -> 0 | I51: ='Pop Model - do not touch'!H22 -> 0 | J51: ='Pop Model - do not touch'!I22 -> 0 | K51: ='Pop Model - do not touch'!J22 -> 0 | L51: ='Pop Model - do not touch'!K22 -> 0 | M51: ='Pop Model - do not touch'!L22 -> 0
B52: Totale kost voor ingrepen via zwerfkatten
B53: Totale kostprijs per jaar (in euro) | C53: nvt | D53: =IF($D$33=0, 'Costs and welfare - dont touch'!C9,'Costs and welfare - dont touch'!C10) -> 0 | E53: =IF($D$33=0, 'Costs and welfare - dont touch'!D9,'Costs and welfare - dont touch'!D10) -> 0 | F53: =IF($D$33=0, 'Costs and welfare - dont touch'!E9,'Costs and welfare - dont touch'!E10) -> 0 | G53: =IF($D$33=0, 'Costs and welfare - dont touch'!F9,'Costs and welfare - dont touch'!F10) -> 0 | H53: =IF($D$33=0, 'Costs and welfare - dont touch'!G9,'Costs and welfare - dont touch'!G10) -> 0 | I53: =IF($D$33=0, 'Costs and welfare - dont touch'!H9,'Costs and welfare - dont touch'!H10) -> 0 | J53: =IF($D$33=0, 'Costs and welfare - dont touch'!I9,'Costs and welfare - dont touch'!I10) -> 0 | K53: =IF($D$33=0, 'Costs and welfare - dont touch'!J9,'Costs and welfare - dont touch'!J10) -> 0 | L53: =IF($D$33=0, 'Costs and welfare - dont touch'!K9,'Costs and welfare - dont touch'!K10) -> 0 | M53: =IF($D$33=0, 'Costs and welfare - dont touch'!L9,'Costs and welfare - dont touch'!L10) -> 0
B54: Cumulatieve kostprijs (in euro) | C54: nvt | D54: =D53 -> 0 | E54: =D54+E53 -> 0 | F54: =E54+F53 -> 0 | G54: 0 | H54: 0 | I54: 0 | J54: 0 | K54: 0 | L54: 0 | M54: 0
B55: Hinder en Welzijn
B56: Waarde hinderindex (per jaar) | C56: ='Costs and welfare - dont touch'!B21 -> 113.8816572 | D56: ='Costs and welfare - dont touch'!C21 -> 112.0136441 | E56: ='Costs and welfare - dont touch'!D21 -> 118.0349108 | F56: ='Costs and welfare - dont touch'!E21 -> 125.0173512 | G56: ='Costs and welfare - dont touch'!F21 -> 133.3779803 | H56: ='Costs and welfare - dont touch'!G21 -> 143.7123773 | I56: ='Costs and welfare - dont touch'!H21 -> 156.7345859 | J56: ='Costs and welfare - dont touch'!I21 -> 173.4282077 | K56: ='Costs and welfare - dont touch'!J21 -> 195.1069518 | L56: ='Costs and welfare - dont touch'!K21 -> 223.4751638 | M56: ='Costs and welfare - dont touch'!L21 -> 260.8392075
B57: % verandering in hinderindex tov start | C57: nvt | D57: ='Costs and welfare - dont touch'!C23 -> -1.640310769 | E57: ='Costs and welfare - dont touch'!D23 -> 3.646990868 | F57: ='Costs and welfare - dont touch'!E23 -> 9.778303471 | G57: ='Costs and welfare - dont touch'!F23 -> 17.11980981 | H57: ='Costs and welfare - dont touch'!G23 -> 26.19449075 | I57: ='Costs and welfare - dont touch'!H23 -> 37.62935119 | J57: ='Costs and welfare - dont touch'!I23 -> 52.28809625 | K57: ='Costs and welfare - dont touch'!J23 -> 71.32429985 | L57: ='Costs and welfare - dont touch'!K23 -> 96.23455561 | M57: ='Costs and welfare - dont touch'!L23 -> 129.0440919
B58: % verandering in hinderindex tov voorgaande jaar | C58: nvt | D58: ='Costs and welfare - dont touch'!C22 -> -1.640310769 | E58: ='Costs and welfare - dont touch'!D22 -> 5.375476151 | F58: ='Costs and welfare - dont touch'!E22 -> 5.915572224 | G58: ='Costs and welfare - dont touch'!F22 -> 6.687574961 | H58: ='Costs and welfare - dont touch'!G22 -> 7.74820328 | I58: ='Costs and welfare - dont touch'!H22 -> 9.061299247 | J58: ='Costs and welfare - dont touch'!I22 -> 10.65088583 | K58: ='Costs and welfare - dont touch'!J22 -> 12.50012579 | L58: ='Costs and welfare - dont touch'!K22 -> 14.53982639 | M58: ='Costs and welfare - dont touch'!L22 -> 16.71955086
B59: Waarde welzijnsindex (per jaar) | C59: ='Costs and welfare - dont touch'!B29 -> 191.6799754 | D59: ='Costs and welfare - dont touch'!C29 -> 191.7288669 | E59: ='Costs and welfare - dont touch'!D29 -> 191.3452179 | F59: ='Costs and welfare - dont touch'!E29 -> 191.0297861 | G59: ='Costs and welfare - dont touch'!F29 -> 190.7638775 | H59: ='Costs and welfare - dont touch'!G29 -> 190.5359971 | I59: ='Costs and welfare - dont touch'!H29 -> 190.3407006 | J59: ='Costs and welfare - dont touch'!I29 -> 190.1741973 | K59: ='Costs and welfare - dont touch'!J29 -> 190.0338335 | L59: ='Costs and welfare - dont touch'!K29 -> 189.9174472 | M59: ='Costs and welfare - dont touch'!L29 -> 189.8225607
B60: % verandering in welzijnsindex tov start | C60: nvt | D60: ='Costs and welfare - dont touch'!C31 -> 0.02550681036 | E60: ='Costs and welfare - dont touch'!D31 -> -0.1746439541 | F60: ='Costs and welfare - dont touch'!E31 -> -0.3392056563 | G60: ='Costs and welfare - dont touch'!F31 -> -0.4779309646 | H60: ='Costs and welfare - dont touch'!G31 -> -0.5968167932 | I60: ='Costs and welfare - dont touch'!H31 -> -0.6987035747 | J60: ='Costs and welfare - dont touch'!I31 -> -0.7855688153 | K60: ='Costs and welfare - dont touch'!J31 -> -0.8587970432 | L60: ='Costs and welfare - dont touch'!K31 -> -0.9195161134 | M60: ='Costs and welfare - dont touch'!L31 -> -0.9690186542
B61: % verandering in welzijnsindex tov voorgaande jaar | C61: nvt | D61: ='Costs and welfare - dont touch'!C32 -> 0.02550681036 | E61: ='Costs and welfare - dont touch'!D32 -> -0.2000997254 | F61: ='Costs and welfare - dont touch'!E32 -> -0.164849602 | G61: ='Costs and welfare - dont touch'!F32 -> -0.139197474 | H61: ='Costs and welfare - dont touch'!G32 -> -0.1194567494 | I61: ='Costs and welfare - dont touch'!H32 -> -0.1024985098 | J61: ='Costs and welfare - dont touch'!I32 -> -0.08747644168 | K61: ='Costs and welfare - dont touch'!J32 -> -0.07380804078 | L61: ='Costs and welfare - dont touch'!K32 -> -0.06124504085 | M61: ='Costs and welfare - dont touch'!L32 -> -0.04996194893

Sheet Pop Model - do not touch (hidden)
B1: 0 | C1: 1 | D1: 2 | E1: 3 | F1: 4 | G1: 5 | H1: 6 | I1: 7 | J1: 8 | K1: 9 | L1: 10
A2: HC_Pop_start | C2: =IF('Rates - do not touch'!B4=Dashboard!D5,'Rates - do not touch'!B4,Dashboard!D5) -> 6164 | D2: =C20 -> 6164 | E2: =D20 -> 6164 | F2: 6164 | G2: 6164 | H2: 6164 | I2: 6164 | J2: 6164 | K2: 6164 | L2: 6164 | N2: HC pop is stable
A3: HC_GrowthRate | C3: ='Rates - do not touch'!$B$14 -> 0.0290172 | D3: ='Rates - do not touch'!$B$14 -> 0.0290172 | E3: ='Rates - do not touch'!$B$14 -> 0.0290172 | F3: ='Rates - do not touch'!$B$14 -> 0.0290172 | G3: ='Rates - do not touch'!$B$14 -> 0.0290172 | H3: ='Rates - do not touch'!$B$14 -> 0.0290172 | I3: ='Rates - do not touch'!$B$14 -> 0.0290172 | J3: ='Rates - do not touch'!$B$14 -> 0.0290172 | K3: ='Rates - do not touch'!$B$14 -> 0.0290172 | L3: ='Rates - do not touch'!$B$14 -> 0.0290172 | N3: GR = Br, AB, Re, Death
A4: HC_PopChange | C4: =C3*C2 -> 178.8620208 | D4: =D3*D2 -> 178.8620208 | E4: 178.8620208 | F4: 178.8620208 | G4: 178.8620208 | H4: =H3*H2 -> 178.8620208 | I4: =I3*I2 -> 178.8620208 | J4: =J3*J2 -> 178.8620208 | K4: =K3*K2 -> 178.8620208 | L4: =L3*L2 -> 178.8620208 | N4: Positive is how many HC are "lost", negative is how many strays are "gained"
A6: StrayCat_B_Start | C6: =IF(Dashboard!D6*'Rates - do not touch'!B16 * 0.5 = 'Rates - do not touch'!B5,'Rates - do not touch'!B5,Dashboard!D6*'Rates - do not touch'!B16*0.5) -> 204.24 | D6: =C10 -> 294 | E6: =D10 -> 414 | F6: 574 | G6: 787 | H6: 1072 | I6: 1452 | J6: 1959 | K6: 2636 | L6: 3539 | N6: Start of breeding pop | Q6: EP (10-11-18): aangepast dat rate niet standaard 0,37 is, maar die van dashboard --> verwijzing naar tab rats B16 ipv handmatige 0,37)
A7: StrayCatGrowth | C7: =IF(C6>0,C6*'Rates - do not touch'!$B$19,0) -> 68.3219274 | D7: =IF(D6>0,D6*'Rates - do not touch'!$B$19,0) -> 98.34825037 | E7: =IF(E6>0,E6*'Rates - do not touch'!$B$19,0) -> 138.4903934 | F7: =IF(F6>0,F6*'Rates - do not touch'!$B$19,0) -> 192.0132507 | G7: =IF(G6>0,G6*'Rates - do not touch'!$B$19,0) -> 263.2655546 | H7: =IF(H6>0,H6*'Rates - do not touch'!$B$19,0) -> 358.6031442 | I7: =IF(I6>0,I6*'Rates - do not touch'!$B$19,0) -> 485.7199304 | J7: =IF(J6>0,J6*'Rates - do not touch'!$B$19,0) -> 655.3204846 | K7: =IF(K6>0,K6*'Rates - do not touch'!$B$19,0) -> 881.7890747 | L7: =IF(L6>0,L6*'Rates - do not touch'!$B$19,0) -> 1183.858701 | N7: From breeding and if HC increase then surplus housecats also go here
A8: StrayCatLoss | C8: =IF(C6>0,(C6*'Rates - do not touch'!$B$27*'Rates - do not touch'!$B$32)+(C6*'Rates - do not touch'!$B$28*'Rates - do not touch'!$B$32)+(C6*'Rates - do not touch'!$B$29*'Rates - do not touch'!$B$32)+(C6*'Rates - do not touch'!$B$30*'Rates - do not touch'!$B$32),0) -> 0 | D8: =IF(D6>0,(D6*'Rates - do not touch'!$B$27*'Rates - do not touch'!$B$32)+(D6*'Rates - do not touch'!$B$28*'Rates - do not touch'!$B$32)+(D6*'Rates - do not touch'!$B$29*'Rates - do not touch'!$B$32)+(D6*'Rates - do not touch'!$B$30*'Rates - do not touch'!$B$32),0) -> 0 | E8: =IF(E6>0,(E6*'Rates - do not touch'!$B$27*'Rates - do not touch'!$B$32)+(E6*'Rates - do not touch'!$B$28*'Rates - do not touch'!$B$32)+(E6*'Rates - do not touch'!$B$29*'Rates - do not touch'!$B$32)+(E6*'Rates - do not touch'!$B$30*'Rates - do not touch'!$B$32),0) -> 0 | F8: =IF(F6>0,(F6*'Rates - do not touch'!$B$27*'Rates - do not touch'!$B$32)+(F6*'Rates - do not touch'!$B$28*'Rates - do not touch'!$B$32)+(F6*'Rates - do not touch'!$B$29*'Rates - do not touch'!$B$32)+(F6*'Rates - do not touch'!$B$30*'Rates - do not touch'!$B$32),0) -> 0 | G8: =IF(G6>0,(G6*'Rates - do not touch'!$B$27*'Rates - do not touch'!$B$32)+(G6*'Rates - do not touch'!$B$28*'Rates - do not touch'!$B$32)+(G6*'Rates - do not touch'!$B$29*'Rates - do not touch'!$B$32)+(G6*'Rates - do not touch'!$B$30*'Rates - do not touch'!$B$32),0) -> 0 | H8: =IF(H6>0,(H6*'Rates - do not touch'!$B$27*'Rates - do not touch'!$B$32)+(H6*'Rates - do not touch'!$B$28*'Rates - do not touch'!$B$32)+(H6*'Rates - do not touch'!$B$29*'Rates - do not touch'!$B$32)+(H6*'Rates - do not touch'!$B$30*'Rates - do not touch'!$B$32),0) -> 0 | I8: =IF(I6>0,(I6*'Rates - do not touch'!$B$27*'Rates - do not touch'!$B$32)+(I6*'Rates - do not touch'!$B$28*'Rates - do not touch'!$B$32)+(I6*'Rates - do not touch'!$B$29*'Rates - do not touch'!$B$32)+(I6*'Rates - do not touch'!$B$30*'Rates - do not touch'!$B$32),0) -> 0 | J8: =IF(J6>0,(J6*'Rates - do not touch'!$B$27*'Rates - do not touch'!$B$32)+(J6*'Rates - do not touch'!$B$28*'Rates - do not touch'!$B$32)+(J6*'Rates - do not touch'!$B$29*'Rates - do not touch'!$B$32)+(J6*'Rates - do not touch'!$B$30*'Rates - do not touch'!$B$32),0) -> 0 | K8: =IF(K6>0,(K6*'Rates - do not touch'!$B$27*'Rates - do not touch'!$B$32)+(K6*'Rates - do not touch'!$B$28*'Rates - do not touch'!$B$32)+(K6*'Rates - do not touch'!$B$29*'Rates - do not touch'!$B$32)+(K6*'Rates - do not touch'!$B$30*'Rates - do not touch'!$B$32),0) -> 0 | L8: =IF(L6>0,(L6*'Rates - do not touch'!$B$27*'Rates - do not touch'!$B$32)+(L6*'Rates - do not touch'!$B$28*'Rates - do not touch'!$B$32)+(L6*'Rates - do not touch'!$B$29*'Rates - do not touch'!$B$32)+(L6*'Rates - do not touch'!$B$30*'Rates - do not touch'!$B$32),0) -> 0 | N8: From death, TNR, Euth, Shel, Comm
A9: StrayCat_B_2House | C9: =IF(C3<0,C4*'Rates - do not touch'!B16, C4*'Rates - do not touch'!$B$10) -> 21.4634425 | D9: =IF(D3<0,D4*'Rates - do not touch'!B16, D4*'Rates - do not touch'!$B$10) -> 21.4634425 | E9: =IF(E3<0,E4*'Rates - do not touch'!B16, E4*'Rates - do not touch'!$B$10) -> 21.4634425 | F9: =IF(F3<0,F4*'Rates - do not touch'!B16, F4*'Rates - do not touch'!$B$10) -> 21.4634425 | G9: =IF(G3<0,G4*'Rates - do not touch'!B16, G4*'Rates - do not touch'!$B$10) -> 21.4634425 | H9: =IF(H3<0,H4*'Rates - do not touch'!B16, H4*'Rates - do not touch'!$B$10) -> 21.4634425 | I9: =IF(I3<0,I4*'Rates - do not touch'!B16, I4*'Rates - do not touch'!$B$10) -> 21.4634425 | J9: =IF(J3<0,J4*'Rates - do not touch'!B16, J4*'Rates - do not touch'!$B$10) -> 21.4634425 | K9: =IF(K3<0,K4*'Rates - do not touch'!B16, K4*'Rates - do not touch'!$B$10) -> 21.4634425 | L9: =IF(L3<0,L4*'Rates - do not touch'!B16, L4*'Rates - do not touch'!$B$10) -> 21.4634425 | N9: Negative: How many stray cats become house cats to maintain HC, Positive: How many HC become stray | Q9: EP (10-11-18): aangepast dat rate niet standaard 0,37 is, maar die van dashboard --> verwijzing naar tab rats B16 ipv handmatige 0,37)
A10: StrayCatPop_B | B10: ='Rates - do not touch'!B5 -> 204 | C10: =IF(ROUND(C6+C7-C8+C9,0) >0,ROUND(C6+C7-C8+C9,0),0) -> 294 | D10: =IF(ROUND(D6+D7-D8+D9,0) >0,ROUND(D6+D7-D8+D9,0),0) -> 414 | E10: 574 | F10: 787 | G10: 1072 | H10: 1452 | I10: 1959 | J10: 2636 | K10: 3539 | L10: 4744 | N10: Final pop of breeding stray cats
A11: StrayCat_B_2CC | C11: =(C6*'Rates - do not touch'!$B$30*'Rates - do not touch'!$B$32) -> 0 | D11: =(D6*'Rates - do not touch'!$B$30*'Rates - do not touch'!$B$32) -> 0 | E11: =(E6*'Rates - do not touch'!$B$30*'Rates - do not touch'!$B$32) -> 0 | F11: =(F6*'Rates - do not touch'!$B$30*'Rates - do not touch'!$B$32) -> 0 | G11: =(G6*'Rates - do not touch'!$B$30*'Rates - do not touch'!$B$32) -> 0 | H11: =(H6*'Rates - do not touch'!$B$30*'Rates - do not touch'!$B$32) -> 0 | I11: =(I6*'Rates - do not touch'!$B$30*'Rates - do not touch'!$B$32) -> 0 | J11: =(J6*'Rates - do not touch'!$B$30*'Rates - do not touch'!$B$32) -> 0 | K11: =(K6*'Rates - do not touch'!$B$30*'Rates - do not touch'!$B$32) -> 0 | L11: =(L6*'Rates - do not touch'!$B$30*'Rates - do not touch'!$B$32) -> 0
A13: StrayCat_NB_Start | C13: =IF(Dashboard!D6*(1-'Rates - do not touch'!B16)+'Pop Model - do not touch'!C6='Rates - do not touch'!B6,'Rates - do not touch'!B6,Dashboard!D6*(1-'Rates - do not touch'!B16)+'Pop Model - do not touch'!C6) -> 899.76 | D13: =C17 -> 751.2401783 | E13: =D17 -> 833.5147388 | F13: 907.5618432 | G13: 974.2042372 | H13: 1034.182392 | I13: 1088.162731 | J13: 1136.745036 | K13: 1180.469111 | L13: 1219.820778 | N13: Start of non breeding pop | Q13: EP (10-11-18): aangepast dat rate niet standaard 0,37 is, maar die van dashboard --> verwijzing naar tab rats B16 ipv handmatige 0,37)
A14: StrayCat_NB_Growth | C14: =IF(C4>0,C4*(1-'Rates - do not touch'!$B$10),0) -> 157.3985783 | D14: =IF(D4>0,D4*(1-'Rates - do not touch'!$B$10),0) -> 157.3985783 | E14: =IF(E4>0,E4*(1-'Rates - do not touch'!$B$10),0) -> 157.3985783 | F14: =IF(F4>0,F4*(1-'Rates - do not touch'!$B$10),0) -> 157.3985783 | G14: =IF(G4>0,G4*(1-'Rates - do not touch'!$B$10),0) -> 157.3985783 | H14: =IF(H4>0,H4*(1-'Rates - do not touch'!$B$10),0) -> 157.3985783 | I14: =IF(I4>0,I4*(1-'Rates - do not touch'!$B$10),0) -> 157.3985783 | J14: =IF(J4>0,J4*(1-'Rates - do not touch'!$B$10),0) -> 157.3985783 | K14: =IF(K4>0,K4*(1-'Rates - do not touch'!$B$10),0) -> 157.3985783 | L14: =IF(L4>0,L4*(1-'Rates - do not touch'!$B$10),0) -> 157.3985783 | N14: Growth of non breeding pop only non zero when HC GR is positive and some non breeding housecats become stray
A15: StrayCat_NB_Loss | C15: =(C13*'Rates - do not touch'!$B$21)+(C13*'Rates - do not touch'!$B$28*'Rates - do not touch'!$B$32)+('Pop Model - do not touch'!C13*'Rates - do not touch'!$B$29*'Rates - do not touch'!$B$32)+('Pop Model - do not touch'!C13*'Rates - do not touch'!$B$30*'Rates - do not touch'!$B$32) -> 305.9184 | D15: =(D13*0.1)+(D13*'Rates - do not touch'!$B$28*'Rates - do not touch'!$B$32)+('Pop Model - do not touch'!D13*'Rates - do not touch'!$B$29*'Rates - do not touch'!$B$32)+('Pop Model - do not touch'!D13*'Rates - do not touch'!$B$30*'Rates - do not touch'!$B$32)+(D16*-1) -> 75.12401783 | E15: =(E13*0.1)+(E13*'Rates - do not touch'!$B$28*'Rates - do not touch'!$B$32)+('Pop Model - do not touch'!E13*'Rates - do not touch'!$B$29*'Rates - do not touch'!$B$32)+('Pop Model - do not touch'!E13*'Rates - do not touch'!$B$30*'Rates - do not touch'!$B$32)+(E16*-1) -> 83.35147388 | F15: =(F13*0.1)+(F13*'Rates - do not touch'!$B$28*'Rates - do not touch'!$B$32)+('Pop Model - do not touch'!F13*'Rates - do not touch'!$B$29*'Rates - do not touch'!$B$32)+('Pop Model - do not touch'!F13*'Rates - do not touch'!$B$30*'Rates - do not touch'!$B$32)+(F16*-1) -> 90.75618432 | G15: =(G13*0.1)+(G13*'Rates - do not touch'!$B$28*'Rates - do not touch'!$B$32)+('Pop Model - do not touch'!G13*'Rates - do not touch'!$B$29*'Rates - do not touch'!$B$32)+('Pop Model - do not touch'!G13*'Rates - do not touch'!$B$30*'Rates - do not touch'!$B$32)+(G16*-1) -> 97.42042372 | H15: =(H13*0.1)+(H13*'Rates - do not touch'!$B$28*'Rates - do not touch'!$B$32)+('Pop Model - do not touch'!H13*'Rates - do not touch'!$B$29*'Rates - do not touch'!$B$32)+('Pop Model - do not touch'!H13*'Rates - do not touch'!$B$30*'Rates - do not touch'!$B$32)+(H16*-1) -> 103.4182392 | I15: =(I13*0.1)+(I13*'Rates - do not touch'!$B$28*'Rates - do not touch'!$B$32)+('Pop Model - do not touch'!I13*'Rates - do not touch'!$B$29*'Rates - do not touch'!$B$32)+('Pop Model - do not touch'!I13*'Rates - do not touch'!$B$30*'Rates - do not touch'!$B$32)+(I16*-1) -> 108.8162731 | J15: =(J13*0.1)+(J13*'Rates - do not touch'!$B$28*'Rates - do not touch'!$B$32)+('Pop Model - do not touch'!J13*'Rates - do not touch'!$B$29*'Rates - do not touch'!$B$32)+('Pop Model - do not touch'!J13*'Rates - do not touch'!$B$30*'Rates - do not touch'!$B$32)+(J16*-1) -> 113.6745036 | K15: =(K13*0.1)+(K13*'Rates - do not touch'!$B$28*'Rates - do not touch'!$B$32)+('Pop Model - do not touch'!K13*'Rates - do not touch'!$B$29*'Rates - do not touch'!$B$32)+('Pop Model - do not touch'!K13*'Rates - do not touch'!$B$30*'Rates - do not touch'!$B$32)+(K16*-1) -> 118.0469111 | L15: =(L13*0.1)+(L13*'Rates - do not touch'!$B$28*'Rates - do not touch'!$B$32)+('Pop Model - do not touch'!L13*'Rates - do not touch'!$B$29*'Rates - do not touch'!$B$32)+('Pop Model - do not touch'!L13*'Rates - do not touch'!$B$30*'Rates - do not touch'!$B$32)+(L16*-1) -> 121.9820778 | N15: Loss from treatments and becoming community cats and by death
A16: StrayCat_NB_2House | C16: =IF(C4<0,C4*(1-'Rates - do not touch'!B16),0) -> 0 | D16: =IF(D4<0,D4*(1-'Rates - do not touch'!B16),0) -> 0 | E16: =IF(E4<0,E4*(1-'Rates - do not touch'!B16),0) -> 0 | F16: =IF(F4<0,F4*(1-'Rates - do not touch'!B16),0) -> 0 | G16: =IF(G4<0,G4*(1-'Rates - do not touch'!B16),0) -> 0 | H16: =IF(H4<0,H4*(1-'Rates - do not touch'!B16),0) -> 0 | I16: =IF(I4<0,I4*(1-'Rates - do not touch'!B16),0) -> 0 | J16: =IF(J4<0,J4*(1-'Rates - do not touch'!B16),0) -> 0 | K16: =IF(K4<0,K4*(1-'Rates - do not touch'!B16),0) -> 0 | L16: =IF(L4<0,L4*(1-'Rates - do not touch'!B16),0) -> 0 | N16: Go to become housecats | Q16: EP (10-11-18): aangepast dat rate niet standaard 0,37 is, maar die van dashboard --> verwijzing naar tab rats B16 ipv handmatige 0,37)
A17: StrayCatPop_NB | B17: ='Rates - do not touch'!B6 -> 900 | C17: =IF(C13+C14-C15+C16>0,C13+C14-C15+C16,0) -> 751.2401783 | D17: =IF(D13+D14-D15+D16>0,D13+D14-D15+D16,0) -> 833.5147388 | E17: 907.5618432 | F17: 974.2042372 | G17: 1034.182392 | H17: 1088.162731 | I17: 1136.745036 | J17: 1180.469111 | K17: 1219.820778 | L17: 1255.237279
A18: StrayCat_NB_2CC | C18: =('Pop Model - do not touch'!C13*'Rates - do not touch'!$B$30*'Rates - do not touch'!$B$32) -> 0 | D18: =('Pop Model - do not touch'!D13*'Rates - do not touch'!$B$30*'Rates - do not touch'!$B$32) -> 0 | E18: =('Pop Model - do not touch'!E13*'Rates - do not touch'!$B$30*'Rates - do not touch'!$B$32) -> 0 | F18: =('Pop Model - do not touch'!F13*'Rates - do not touch'!$B$30*'Rates - do not touch'!$B$32) -> 0 | G18: =('Pop Model - do not touch'!G13*'Rates - do not touch'!$B$30*'Rates - do not touch'!$B$32) -> 0 | H18: =('Pop Model - do not touch'!H13*'Rates - do not touch'!$B$30*'Rates - do not touch'!$B$32) -> 0 | I18: =('Pop Model - do not touch'!I13*'Rates - do not touch'!$B$30*'Rates - do not touch'!$B$32) -> 0 | J18: =('Pop Model - do not touch'!J13*'Rates - do not touch'!$B$30*'Rates - do not touch'!$B$32) -> 0 | K18: =('Pop Model - do not touch'!K13*'Rates - do not touch'!$B$30*'Rates - do not touch'!$B$32) -> 0 | L18: =('Pop Model - do not touch'!L13*'Rates - do not touch'!$B$30*'Rates - do not touch'!$B$32) -> 0
N19: What proportion of cats are people likely to take from strays vs shelter? At the moment all the shortfall is taken up by strays
A20: HC_EndPop | B20: ='Rates - do not touch'!B4 -> 6164 | C20: =IF(C3>0,C2-C4+C9+C14, C2+C4-C9-C16) -> 6164 | D20: =IF(D3>0,D2-D4+D9+D14, D2+D4-D9-D16) -> 6164 | E20: 6164 | F20: 6164 | G20: 6164 | H20: 6164 | I20: 6164 | J20: 6164 | K20: 6164 | L20: 6164 | N20: Checks that HC stays stable
A22: TNR_Pop | C22: =(C6*'Rates - do not touch'!$B$27*'Rates - do not touch'!$B$32) -> 0 | D22: =(D6*'Rates - do not touch'!$B$27*'Rates - do not touch'!$B$32) -> 0 | E22: =(E6*'Rates - do not touch'!$B$27*'Rates - do not touch'!$B$32) -> 0 | F22: =(F6*'Rates - do not touch'!$B$27*'Rates - do not touch'!$B$32) -> 0 | G22: =(G6*'Rates - do not touch'!$B$27*'Rates - do not touch'!$B$32) -> 0 | H22: =(H6*'Rates - do not touch'!$B$27*'Rates - do not touch'!$B$32) -> 0 | I22: =(I6*'Rates - do not touch'!$B$27*'Rates - do not touch'!$B$32) -> 0 | J22: =(J6*'Rates - do not touch'!$B$27*'Rates - do not touch'!$B$32) -> 0 | K22: =(K6*'Rates - do not touch'!$B$27*'Rates - do not touch'!$B$32) -> 0 | L22: =(L6*'Rates - do not touch'!$B$27*'Rates - do not touch'!$B$32) -> 0 | N22: TNR pop without death
A23: Cum_TNR | C23: =C22 -> 0 | D23: =D22+C23 -> 0 | E23: =E22+D23 -> 0 | F23: 0 | G23: 0 | H23: =H22+G23 -> 0 | I23: =I22+H23 -> 0 | J23: =J22+I23 -> 0 | K23: =K22+J23 -> 0 | L23: =L22+K23 -> 0 | N23: Cumulative amount of TNR
A24: CC_Pop | B24: =Dashboard!D8 -> 117 | C24: =(C13*'Rates - do not touch'!$B$30*'Rates - do not touch'!$B$32)+(C6*'Rates - do not touch'!$B$30*'Rates - do not touch'!$B$32)+'Rates - do not touch'!B8+('Rates - do not touch'!B8*'Rates - do not touch'!$B$23) -> 113.49 | D24: =C24+(D13*'Rates - do not touch'!$B$30*'Rates - do not touch'!$B$32)+'Pop Model - do not touch'!C24*'Rates - do not touch'!$B$23 -> 110.0853 | E24: =D24+(E13*'Rates - do not touch'!$B$30*'Rates - do not touch'!$B$32)+'Pop Model - do not touch'!D24*'Rates - do not touch'!$B$23 -> 106.782741 | F24: =E24+(F13*'Rates - do not touch'!$B$30*'Rates - do not touch'!$B$32)+'Pop Model - do not touch'!E24*'Rates - do not touch'!$B$23 -> 103.5792588 | G24: =F24+(G13*'Rates - do not touch'!$B$30*'Rates - do not touch'!$B$32)+'Pop Model - do not touch'!F24*'Rates - do not touch'!$B$23 -> 100.471881 | H24: =G24+(H13*'Rates - do not touch'!$B$30*'Rates - do not touch'!$B$32)+'Pop Model - do not touch'!G24*'Rates - do not touch'!$B$23 -> 97.45772458 | I24: =H24+(I13*'Rates - do not touch'!$B$30*'Rates - do not touch'!$B$32)+'Pop Model - do not touch'!H24*'Rates - do not touch'!$B$23 -> 94.53399284 | J24: =I24+(J13*'Rates - do not touch'!$B$30*'Rates - do not touch'!$B$32)+'Pop Model - do not touch'!I24*'Rates - do not touch'!$B$23 -> 91.69797305 | K24: =J24+(K13*'Rates - do not touch'!$B$30*'Rates - do not touch'!$B$32)+'Pop Model - do not touch'!J24*'Rates - do not touch'!$B$23 -> 88.94703386 | L24: =K24+(L13*'Rates - do not touch'!$B$30*'Rates - do not touch'!$B$32)+'Pop Model - do not touch'!K24*'Rates - do not touch'!$B$23 -> 86.27862285 | N24: CC pop with death a dn growth rate
A25: CC_New | C25: =IF(C24-'Rates - do not touch'!B8>0,C24-'Rates - do not touch'!B8,0) -> 0 | D25: =IF(D24-C24>0,D24-C24,0) -> 0 | E25: =IF(E24-D24>0,E24-D24,0) -> 0 | F25: 0 | G25: 0 | H25: 0 | I25: 0 | J25: 0 | K25: 0 | L25: 0
A26: Cats being managed
A28: Stray_Pop | B28: =C6+C13 -> 1104 | C28: =((C22)*1-'Rates - do not touch'!$B$21)+C10+C17 -> 1044.900178 | D28: =((D22)*1-'Rates - do not touch'!$B$21)+D10+D17 -> 1247.174739 | E28: =((E22)*1-'Rates - do not touch'!$B$21)+E10+E17 -> 1481.221843 | F28: =((F22)*1-'Rates - do not touch'!$B$21)+F10+F17 -> 1760.864237 | G28: =((G22)*1-'Rates - do not touch'!$B$21)+G10+G17 -> 2105.842392 | H28: =((H22)*1-'Rates - do not touch'!$B$21)+H10+H17 -> 2539.822731 | I28: =((I22)*1-'Rates - do not touch'!$B$21)+I10+I17 -> 3095.405036 | J28: =((J22)*1-'Rates - do not touch'!$B$21)+J10+J17 -> 3816.129111 | K28: =((K22)*1-'Rates - do not touch'!$B$21)+K10+K17 -> 4758.480778 | L28: =((L22)*1-'Rates - do not touch'!$B$21)+L10+L17 -> 5998.897279 | N28: ((TNR)*1-deathrate)+Breeding + NonBreeding strays | Q28: EP (10-11-18): berekening B28 aangepast dat niet B10 en B17 worden opgeteld (die wijzen naar rates tab met handmatige 0,37), maar wel C6 en C13, die de startpopulaties berekenen op basis van wat in dashboard wordt ingevuld.
A29: Euth_Pop | B29: 0 | C29: =(C6*'Rates - do not touch'!$B$29*'Rates - do not touch'!$B$32)+('Pop Model - do not touch'!C13*'Rates - do not touch'!$B$29*'Rates - do not touch'!$B$32) -> 0 | D29: =(D6*'Rates - do not touch'!$B$29*'Rates - do not touch'!$B$32)+('Pop Model - do not touch'!D13*'Rates - do not touch'!$B$29*'Rates - do not touch'!$B$32) -> 0 | E29: =(E6*'Rates - do not touch'!$B$29*'Rates - do not touch'!$B$32)+('Pop Model - do not touch'!E13*'Rates - do not touch'!$B$29*'Rates - do not touch'!$B$32) -> 0 | F29: =(F6*'Rates - do not touch'!$B$29*'Rates - do not touch'!$B$32)+('Pop Model - do not touch'!F13*'Rates - do not touch'!$B$29*'Rates - do not touch'!$B$32) -> 0 | G29: =(G6*'Rates - do not touch'!$B$29*'Rates - do not touch'!$B$32)+('Pop Model - do not touch'!G13*'Rates - do not touch'!$B$29*'Rates - do not touch'!$B$32) -> 0 | H29: =(H6*'Rates - do not touch'!$B$29*'Rates - do not touch'!$B$32)+('Pop Model - do not touch'!H13*'Rates - do not touch'!$B$29*'Rates - do not touch'!$B$32) -> 0 | I29: =(I6*'Rates - do not touch'!$B$29*'Rates - do not touch'!$B$32)+('Pop Model - do not touch'!I13*'Rates - do not touch'!$B$29*'Rates - do not touch'!$B$32) -> 0 | J29: =(J6*'Rates - do not touch'!$B$29*'Rates - do not touch'!$B$32)+('Pop Model - do not touch'!J13*'Rates - do not touch'!$B$29*'Rates - do not touch'!$B$32) -> 0 | K29: =(K6*'Rates - do not touch'!$B$29*'Rates - do not touch'!$B$32)+('Pop Model - do not touch'!K13*'Rates - do not touch'!$B$29*'Rates - do not touch'!$B$32) -> 0 | L29: =(L6*'Rates - do not touch'!$B$29*'Rates - do not touch'!$B$32)+('Pop Model - do not touch'!L13*'Rates - do not touch'!$B$29*'Rates - do not touch'!$B$32) -> 0
A30: Cum_Euth | B30: 0 | C30: =C29 -> 0 | D30: =C30+D29 -> 0 | E30: =D30+E29 -> 0 | F30: 0 | G30: 0 | H30: =G30+H29 -> 0 | I30: =H30+I29 -> 0 | J30: =I30+J29 -> 0 | K30: =J30+K29 -> 0 | L30: =K30+L29 -> 0
A31: Shel_Pop | B31: 0 | C31: =(C6*'Rates - do not touch'!$B$28*'Rates - do not touch'!$B$32)+('Pop Model - do not touch'!C13*'Rates - do not touch'!$B$28*'Rates - do not touch'!$B$32) -> 0 | D31: =(D6*'Rates - do not touch'!$B$28*'Rates - do not touch'!$B$32)+('Pop Model - do not touch'!D13*'Rates - do not touch'!$B$28*'Rates - do not touch'!$B$32) -> 0 | E31: =(E6*'Rates - do not touch'!$B$28*'Rates - do not touch'!$B$32)+('Pop Model - do not touch'!E13*'Rates - do not touch'!$B$28*'Rates - do not touch'!$B$32) -> 0 | F31: =(F6*'Rates - do not touch'!$B$28*'Rates - do not touch'!$B$32)+('Pop Model - do not touch'!F13*'Rates - do not touch'!$B$28*'Rates - do not touch'!$B$32) -> 0 | G31: =(G6*'Rates - do not touch'!$B$28*'Rates - do not touch'!$B$32)+('Pop Model - do not touch'!G13*'Rates - do not touch'!$B$28*'Rates - do not touch'!$B$32) -> 0 | H31: =(H6*'Rates - do not touch'!$B$28*'Rates - do not touch'!$B$32)+('Pop Model - do not touch'!H13*'Rates - do not touch'!$B$28*'Rates - do not touch'!$B$32) -> 0 | I31: =(I6*'Rates - do not touch'!$B$28*'Rates - do not touch'!$B$32)+('Pop Model - do not touch'!I13*'Rates - do not touch'!$B$28*'Rates - do not touch'!$B$32) -> 0 | J31: =(J6*'Rates - do not touch'!$B$28*'Rates - do not touch'!$B$32)+('Pop Model - do not touch'!J13*'Rates - do not touch'!$B$28*'Rates - do not touch'!$B$32) -> 0 | K31: =(K6*'Rates - do not touch'!$B$28*'Rates - do not touch'!$B$32)+('Pop Model - do not touch'!K13*'Rates - do not touch'!$B$28*'Rates - do not touch'!$B$32) -> 0 | L31: =(L6*'Rates - do not touch'!$B$28*'Rates - do not touch'!$B$32)+('Pop Model - do not touch'!L13*'Rates - do not touch'!$B$28*'Rates - do not touch'!$B$32) -> 0
A32: Cum_Shel | B32: 0 | C32: =C31 -> 0 | D32: =C32+D31 -> 0 | E32: =D32+E31 -> 0 | F32: 0 | G32: 0 | H32: =G32+H31 -> 0 | I32: =H32+I31 -> 0 | J32: =I32+J31 -> 0 | K32: =J32+K31 -> 0 | L32: =K32+L31 -> 0
A34: %Stray Change year on year | B34: 100 | C34: =IF(C28>0,(C28/B28)*100,0) -> 94.64675528 | D34: =IF(D28>0,(D28/C28)*100,0) -> 119.3582664 | E34: 118.7661839 | F34: 118.8791703 | G34: 119.5914113 | H34: 120.608396 | I34: 121.8748458 | J34: 123.2836758 | K34: 124.6939147 | L34: 126.06749
A35: %CC Change year on year | B35: =B24 -> 117 | C35: =IF(C24>0,(C24/B24)*100,0) -> 97 | D35: =IF(D24>0,(D24/C24)*100,0) -> 97 | E35: 97 | F35: 97 | G35: 97 | H35: 97 | I35: 97 | J35: 97 | K35: 97 | L35: 97
A36: %HC Change year on year | B36: 100 | C36: =IF(C2>0,(C2/'Rates - do not touch'!$B$4)*100,0) -> 100 | D36: =IF(D2>0,(D2/'Rates - do not touch'!$B$4)*100,0) -> 100 | E36: =IF(E2>0,(E2/'Rates - do not touch'!$B$4)*100,0) -> 100 | F36: =IF(F2>0,(F2/'Rates - do not touch'!$B$4)*100,0) -> 100 | G36: =IF(G2>0,(G2/'Rates - do not touch'!$B$4)*100,0) -> 100 | H36: =IF(H2>0,(H2/'Rates - do not touch'!$B$4)*100,0) -> 100 | I36: =IF(I2>0,(I2/'Rates - do not touch'!$B$4)*100,0) -> 100 | J36: =IF(J2>0,(J2/'Rates - do not touch'!$B$4)*100,0) -> 100 | K36: =IF(K2>0,(K2/'Rates - do not touch'!$B$4)*100,0) -> 100 | L36: =IF(L2>0,(L2/'Rates - do not touch'!$B$4)*100,0) -> 100
A37: %B_Stray change year on year
A39: %Stray Change from first year | B39: 100 | C39: =IF(C28>0,(C28/$B$28)*100,0) -> 94.64675528 | D39: =IF(D28>0,(D28/$B$28)*100,0) -> 112.9687263 | E39: 134.1686452 | F39: 159.4985722 | G39: 190.7465935 | H39: 230.0564068 | I39: 280.380891 | J39: 345.6638687 | K39: 431.0218096 | L39: 543.3783767 | N39: dit is hoeveel procent van de oorspronkelijke populatie er nog over is (EP)
A40: %CC Change from first year | B40: 100 | C40: =IF(C24>0,(C24/$B$24)*100,0) -> 97 | D40: =IF(D24>0,(D24/$B$24)*100,0) -> 94.09 | E40: 91.2673 | F40: 88.529281 | G40: 85.87340257 | H40: 83.29720049 | I40: 80.79828448 | J40: 78.37433594 | K40: 76.02310587 | L40: 73.74241269
A41: %HC Change from first year | B41: 100 | C41: =IF(C2>0,(C2/'Rates - do not touch'!$B$4)*100,0) -> 100 | D41: =IF(D2>0,(D2/'Rates - do not touch'!$B$4)*100,0) -> 100 | E41: =IF(E2>0,(E2/'Rates - do not touch'!$B$4)*100,0) -> 100 | F41: =IF(F2>0,(F2/'Rates - do not touch'!$B$4)*100,0) -> 100 | G41: =IF(G2>0,(G2/'Rates - do not touch'!$B$4)*100,0) -> 100 | H41: =IF(H2>0,(H2/'Rates - do not touch'!$B$4)*100,0) -> 100 | I41: =IF(I2>0,(I2/'Rates - do not touch'!$B$4)*100,0) -> 100 | J41: =IF(J2>0,(J2/'Rates - do not touch'!$B$4)*100,0) -> 100 | K41: =IF(K2>0,(K2/'Rates - do not touch'!$B$4)*100,0) -> 100 | L41: =IF(L2>0,(L2/'Rates - do not touch'!$B$4)*100,0) -> 100
A42: %BreedingStray Change | B42: 100 | C42: =IF(C10>0,(C10/$B$10)*100,0) -> 144.1176471 | D42: =IF(D10>0,(D10/$B$10)*100,0) -> 202.9411765 | E42: 281.372549 | F42: 385.7843137 | G42: 525.4901961 | H42: 711.7647059 | I42: 960.2941176 | J42: 1292.156863 | K42: 1734.803922 | L42: 2325.490196

Sheet Costs and welfare - dont touch (hidden)
A2: Year | B2: 0 | C2: 1 | D2: 2 | E2: 3 | F2: 4 | G2: 5 | H2: 6 | I2: 7 | J2: 8 | K2: 9 | L2: 10
A3: Costs
A4: CatsTNR | B4: 0 | C4: =IF('Pop Model - do not touch'!C22>0,('Pop Model - do not touch'!C22*Dashboard!$K$29),0) -> 0 | D4: =IF('Pop Model - do not touch'!D22>0,('Pop Model - do not touch'!D22*Dashboard!$K$29),0) -> 0 | E4: =IF('Pop Model - do not touch'!E22>0,('Pop Model - do not touch'!E22*Dashboard!$K$29),0) -> 0 | F4: =IF('Pop Model - do not touch'!F22>0,('Pop Model - do not touch'!F22*Dashboard!$K$29),0) -> 0 | G4: =IF('Pop Model - do not touch'!G22>0,('Pop Model - do not touch'!G22*Dashboard!$K$29),0) -> 0 | H4: =IF('Pop Model - do not touch'!H22>0,('Pop Model - do not touch'!H22*Dashboard!$K$29),0) -> 0 | I4: =IF('Pop Model - do not touch'!I22>0,('Pop Model - do not touch'!I22*Dashboard!$K$29),0) -> 0 | J4: =IF('Pop Model - do not touch'!J22>0,('Pop Model - do not touch'!J22*Dashboard!$K$29),0) -> 0 | K4: =IF('Pop Model - do not touch'!K22>0,('Pop Model - do not touch'!K22*Dashboard!$K$29),0) -> 0 | L4: =IF('Pop Model - do not touch'!L22>0,('Pop Model - do not touch'!L22*Dashboard!$K$29),0) -> 0
A5: CatsEuth | B5: 0 | C5: =IF('Pop Model - do not touch'!C29>0, 'Pop Model - do not touch'!C29*Dashboard!$K$31,0) -> 0 | D5: =IF('Pop Model - do not touch'!D29>0, 'Pop Model - do not touch'!D29*Dashboard!$K$31,0) -> 0 | E5: =IF('Pop Model - do not touch'!E29>0, 'Pop Model - do not touch'!E29*Dashboard!$K$31,0) -> 0 | F5: =IF('Pop Model - do not touch'!F29>0, 'Pop Model - do not touch'!F29*Dashboard!$K$31,0) -> 0 | G5: =IF('Pop Model - do not touch'!G29>0, 'Pop Model - do not touch'!G29*Dashboard!$K$31,0) -> 0 | H5: =IF('Pop Model - do not touch'!H29>0, 'Pop Model - do not touch'!H29*Dashboard!$K$31,0) -> 0 | I5: =IF('Pop Model - do not touch'!I29>0, 'Pop Model - do not touch'!I29*Dashboard!$K$31,0) -> 0 | J5: =IF('Pop Model - do not touch'!J29>0, 'Pop Model - do not touch'!J29*Dashboard!$K$31,0) -> 0 | K5: =IF('Pop Model - do not touch'!K29>0, 'Pop Model - do not touch'!K29*Dashboard!$K$31,0) -> 0 | L5: =IF('Pop Model - do not touch'!L29>0, 'Pop Model - do not touch'!L29*Dashboard!$K$31,0) -> 0
A6: NBCatsCC | B6: 0 | C6: =IF('Pop Model - do not touch'!C18>0,'Pop Model - do not touch'!C18*(Dashboard!$K$30-Dashboard!$D$23),0) -> 0 | D6: =IF('Pop Model - do not touch'!D18>0,'Pop Model - do not touch'!D18*(Dashboard!$K$30-Dashboard!$D$23),0) -> 0 | E6: =IF('Pop Model - do not touch'!E18>0,'Pop Model - do not touch'!E18*(Dashboard!$K$30-Dashboard!$D$23),0) -> 0 | F6: =IF('Pop Model - do not touch'!F18>0,'Pop Model - do not touch'!F18*(Dashboard!$K$30-Dashboard!$D$23),0) -> 0 | G6: =IF('Pop Model - do not touch'!G18>0,'Pop Model - do not touch'!G18*(Dashboard!$K$30-Dashboard!$D$23),0) -> 0 | H6: =IF('Pop Model - do not touch'!H18>0,'Pop Model - do not touch'!H18*(Dashboard!$K$30-Dashboard!$D$23),0) -> 0 | I6: =IF('Pop Model - do not touch'!I18>0,'Pop Model - do not touch'!I18*(Dashboard!$K$30-Dashboard!$D$23),0) -> 0 | J6: =IF('Pop Model - do not touch'!J18>0,'Pop Model - do not touch'!J18*(Dashboard!$K$30-Dashboard!$D$23),0) -> 0 | K6: =IF('Pop Model - do not touch'!K18>0,'Pop Model - do not touch'!K18*(Dashboard!$K$30-Dashboard!$D$23),0) -> 0 | L6: =IF('Pop Model - do not touch'!L18>0,'Pop Model - do not touch'!L18*(Dashboard!$K$30-Dashboard!$D$23),0) -> 0
A7: BCatsCC | C7: =IF('Pop Model - do not touch'!C11>0,'Pop Model - do not touch'!C11*Dashboard!$K$30,0) -> 0 | D7: =IF('Pop Model - do not touch'!D11>0,'Pop Model - do not touch'!D11*Dashboard!$K$30,0) -> 0 | E7: =IF('Pop Model - do not touch'!E11>0,'Pop Model - do not touch'!E11*Dashboard!$K$30,0) -> 0 | F7: =IF('Pop Model - do not touch'!F11>0,'Pop Model - do not touch'!F11*Dashboard!$K$30,0) -> 0 | G7: =IF('Pop Model - do not touch'!G11>0,'Pop Model - do not touch'!G11*Dashboard!$K$30,0) -> 0 | H7: =IF('Pop Model - do not touch'!H11>0,'Pop Model - do not touch'!H11*Dashboard!$K$30,0) -> 0 | I7: =IF('Pop Model - do not touch'!I11>0,'Pop Model - do not touch'!I11*Dashboard!$K$30,0) -> 0 | J7: =IF('Pop Model - do not touch'!J11>0,'Pop Model - do not touch'!J11*Dashboard!$K$30,0) -> 0 | K7: =IF('Pop Model - do not touch'!K11>0,'Pop Model - do not touch'!K11*Dashboard!$K$30,0) -> 0 | L7: =IF('Pop Model - do not touch'!L11>0,'Pop Model - do not touch'!L11*Dashboard!$K$30,0) -> 0
A8: ShelterCost | C8: =IF('Pop Model - do not touch'!C31>0,'Pop Model - do not touch'!C31*Dashboard!$K$32,0) -> 0 | D8: =IF('Pop Model - do not touch'!D31>0,'Pop Model - do not touch'!D31*Dashboard!$K$32,0) -> 0 | E8: =IF('Pop Model - do not touch'!E31>0,'Pop Model - do not touch'!E31*Dashboard!$K$32,0) -> 0 | F8: =IF('Pop Model - do not touch'!F31>0,'Pop Model - do not touch'!F31*Dashboard!$K$32,0) -> 0 | G8: =IF('Pop Model - do not touch'!G31>0,'Pop Model - do not touch'!G31*Dashboard!$K$32,0) -> 0 | H8: =IF('Pop Model - do not touch'!H31>0,'Pop Model - do not touch'!H31*Dashboard!$K$32,0) -> 0 | I8: =IF('Pop Model - do not touch'!I31>0,'Pop Model - do not touch'!I31*Dashboard!$K$32,0) -> 0 | J8: =IF('Pop Model - do not touch'!J31>0,'Pop Model - do not touch'!J31*Dashboard!$K$32,0) -> 0 | K8: =IF('Pop Model - do not touch'!K31>0,'Pop Model - do not touch'!K31*Dashboard!$K$32,0) -> 0 | L8: =IF('Pop Model - do not touch'!L31>0,'Pop Model - do not touch'!L31*Dashboard!$K$32,0) -> 0
A9: FullCost | C9: =SUM(C4:C8) -> 0 | D9: =SUM(D4:D8) -> 0 | E9: =SUM(E4:E8) -> 0 | F9: 0 | G9: 0 | H9: 0 | I9: 0 | J9: 0 | K9: 0 | L9: 0 | M9: EP: sheltercost included in full cost 7-11-18
A10: ContractCost | C10: =IF(Dashboard!$D$33>0,SUM('Pop Model - do not touch'!C22,'Pop Model - do not touch'!C29,'Pop Model - do not touch'!C18,'Pop Model - do not touch'!C11,'Pop Model - do not touch'!C31)*Dashboard!$D$33,0) -> 0 | D10: =IF(Dashboard!$D$33>0,SUM('Pop Model - do not touch'!D22,'Pop Model - do not touch'!D29,'Pop Model - do not touch'!D18,'Pop Model - do not touch'!D11,'Pop Model - do not touch'!D31)*Dashboard!$D$33,0) -> 0 | E10: =IF(Dashboard!$D$33>0,SUM('Pop Model - do not touch'!E22,'Pop Model - do not touch'!E29,'Pop Model - do not touch'!E18,'Pop Model - do not touch'!E11,'Pop Model - do not touch'!E31)*Dashboard!$D$33,0) -> 0 | F10: =IF(Dashboard!$D$33>0,SUM('Pop Model - do not touch'!F22,'Pop Model - do not touch'!F29,'Pop Model - do not touch'!F18,'Pop Model - do not touch'!F11,'Pop Model - do not touch'!F31)*Dashboard!$D$33,0) -> 0 | G10: =IF(Dashboard!$D$33>0,SUM('Pop Model - do not touch'!G22,'Pop Model - do not touch'!G29,'Pop Model - do not touch'!G18,'Pop Model - do not touch'!G11,'Pop Model - do not touch'!G31)*Dashboard!$D$33,0) -> 0 | H10: =IF(Dashboard!$D$33>0,SUM('Pop Model - do not touch'!H22,'Pop Model - do not touch'!H29,'Pop Model - do not touch'!H18,'Pop Model - do not touch'!H11,'Pop Model - do not touch'!H31)*Dashboard!$D$33,0) -> 0 | I10: =IF(Dashboard!$D$33>0,SUM('Pop Model - do not touch'!I22,'Pop Model - do not touch'!I29,'Pop Model - do not touch'!I18,'Pop Model - do not touch'!I11,'Pop Model - do not touch'!I31)*Dashboard!$D$33,0) -> 0 | J10: =IF(Dashboard!$D$33>0,SUM('Pop Model - do not touch'!J22,'Pop Model - do not touch'!J29,'Pop Model - do not touch'!J18,'Pop Model - do not touch'!J11,'Pop Model - do not touch'!J31)*Dashboard!$D$33,0) -> 0 | K10: =IF(Dashboard!$D$33>0,SUM('Pop Model - do not touch'!K22,'Pop Model - do not touch'!K29,'Pop Model - do not touch'!K18,'Pop Model - do not touch'!K11,'Pop Model - do not touch'!K31)*Dashboard!$D$33,0) -> 0 | L10: =IF(Dashboard!$D$33>0,SUM('Pop Model - do not touch'!L22,'Pop Model - do not touch'!L29,'Pop Model - do not touch'!L18,'Pop Model - do not touch'!L11,'Pop Model - do not touch'!L31)*Dashboard!$D$33,0) -> 0
A12: Plot_CostContract | C12: =IF(C10=0,NA(),C10) ->  | D12: =IF(D10=0,NA(),D10) -> 
A13: Plot_CostTNR | C13: =IF(C10>0,NA(),C4) -> 0 | D13: =IF(D10>0,NA(),D4) -> 0 | E13: 0 | F13: 0 | G13: 0 | H13: 0 | I13: 0 | J13: 0 | K13: 0 | L13: 0
A14: Plot_CostEuth | C14: =IF(C10>0,NA(),C5) -> 0 | D14: =IF(D10>0,NA(),D5) -> 0 | E14: 0 | F14: 0 | G14: 0 | H14: 0 | I14: 0 | J14: 0 | K14: 0 | L14: 0
A15: Plot_CC | C15: =IF(C10>0, NA(), SUM(C6:C7)) -> 0 | D15: =IF(D10>0, NA(), SUM(D6:D7)) -> 0 | E15: 0 | F15: 0 | G15: 0 | H15: 0 | I15: 0 | J15: 0 | K15: 0 | L15: 0
A17: Habitat | B17: =Dashboard!$D$9 -> Alle
A18: Nuisance
A19: PropFreeHC | B19: =IF(B17="Halfstedelijk",'Rates - do not touch'!$E$36*'Rates - do not touch'!$H$36,IF(B17="Stedelijk",'Rates - do not touch'!$E$35*'Rates - do not touch'!$H$35,IF(B17="Landelijk",'Rates - do not touch'!$E$37*'Rates - do not touch'!$H$37,IF(B17="Industrieel",'Rates - do not touch'!$E$38*'Rates - do not touch'!$H$38,IF(B17="Alle",'Rates - do not touch'!$E$39*'Rates - do not touch'!$H$39))))) -> 0.5225
A20: PropFreeCC | B20: =IF(B17="Halfstedelijk",'Rates - do not touch'!$F$36*'Rates - do not touch'!$I$36,IF(B17="Stedelijk",'Rates - do not touch'!$F$35*'Rates - do not touch'!$I$35,IF(B17="Landelijk",'Rates - do not touch'!$F$37*'Rates - do not touch'!$I$37,IF(B17="Industrieel",'Rates - do not touch'!$F$38*'Rates - do not touch'!$I$38,IF(B17="Alle",'Rates - do not touch'!$F$39*'Rates - do not touch'!$I$39))))) -> 1
A21: NuisanceFactor | B21: =IF(Dashboard!$D$4>0,(((($B$19*'Pop Model - do not touch'!B20)+'Pop Model - do not touch'!B24)*0.8)+'Pop Model - do not touch'!B28)/(Dashboard!$D$4/1000),0) -> 113.8816572 | C21: =IF(Dashboard!$D$4>0,(((($B$19*'Pop Model - do not touch'!C20)+'Pop Model - do not touch'!C24)*0.8)+'Pop Model - do not touch'!C28)/(Dashboard!$D$4/1000),0) -> 112.0136441 | D21: =IF(Dashboard!$D$4>0,(((($B$19*'Pop Model - do not touch'!D20)+'Pop Model - do not touch'!D24)*0.8)+'Pop Model - do not touch'!D28)/(Dashboard!$D$4/1000),0) -> 118.0349108 | E21: =IF(Dashboard!$D$4>0,(((($B$19*'Pop Model - do not touch'!E20)+'Pop Model - do not touch'!E24)*0.8)+'Pop Model - do not touch'!E28)/(Dashboard!$D$4/1000),0) -> 125.0173512 | F21: =IF(Dashboard!$D$4>0,(((($B$19*'Pop Model - do not touch'!F20)+'Pop Model - do not touch'!F24)*0.8)+'Pop Model - do not touch'!F28)/(Dashboard!$D$4/1000),0) -> 133.3779803 | G21: =IF(Dashboard!$D$4>0,(((($B$19*'Pop Model - do not touch'!G20)+'Pop Model - do not touch'!G24)*0.8)+'Pop Model - do not touch'!G28)/(Dashboard!$D$4/1000),0) -> 143.7123773 | H21: =IF(Dashboard!$D$4>0,(((($B$19*'Pop Model - do not touch'!H20)+'Pop Model - do not touch'!H24)*0.8)+'Pop Model - do not touch'!H28)/(Dashboard!$D$4/1000),0) -> 156.7345859 | I21: =IF(Dashboard!$D$4>0,(((($B$19*'Pop Model - do not touch'!I20)+'Pop Model - do not touch'!I24)*0.8)+'Pop Model - do not touch'!I28)/(Dashboard!$D$4/1000),0) -> 173.4282077 | J21: =IF(Dashboard!$D$4>0,(((($B$19*'Pop Model - do not touch'!J20)+'Pop Model - do not touch'!J24)*0.8)+'Pop Model - do not touch'!J28)/(Dashboard!$D$4/1000),0) -> 195.1069518 | K21: =IF(Dashboard!$D$4>0,(((($B$19*'Pop Model - do not touch'!K20)+'Pop Model - do not touch'!K24)*0.8)+'Pop Model - do not touch'!K28)/(Dashboard!$D$4/1000),0) -> 223.4751638 | L21: =IF(Dashboard!$D$4>0,(((($B$19*'Pop Model - do not touch'!L20)+'Pop Model - do not touch'!L24)*0.8)+'Pop Model - do not touch'!L28)/(Dashboard!$D$4/1000),0) -> 260.8392075 | M21: EP: berekening voor jaar 0 (9-11-18)
A22: Year on year % change in nuisance | C22: =IF(B21>0,(100-(C21/B21)*100)*-1,0) -> -1.640310769 | D22: =IF(C21>0,(100-(D21/C21)*100)*-1,0) -> 5.375476151 | E22: =IF(D21>0,(100-(E21/D21)*100)*-1,0) -> 5.915572224 | F22: 6.687574961 | G22: 7.74820328 | H22: 9.061299247 | I22: 10.65088583 | J22: 12.50012579 | K22: 14.53982639 | L22: 16.71955086
C23: =IF(B21>0,(100-(C21/$B$21)*100)*-1,0) -> -1.640310769 | D23: =IF(C21>0,(100-(D21/$B$21)*100)*-1,0) -> 3.646990868 | E23: =IF(D21>0,(100-(E21/$B$21)*100)*-1,0) -> 9.778303471 | F23: 17.11980981 | G23: 26.19449075 | H23: 37.62935119 | I23: 52.28809625 | J23: 71.32429985 | K23: 96.23455561 | L23: 129.0440919 | M23: EP: aangepast: berekening tov jaar 0 ipv tov jaar 1
A24: Welfare
A25: PropFreeSC | B25: 0.25 | M25: EP: 0,25 komt omdat we 4 habitats hebben en ervan uitgaan dat er overal evenveel SC zitten
A26: WelfareCC | B26: =IF($B$17 = "Stedelijk",$B$20*'Pop Model - do not touch'!B24*'Rates - do not touch'!$C$35, IF($B$17 = "Halfstedelijk",$B$20*'Pop Model - do not touch'!B24*'Rates - do not touch'!$C$36, IF($B$17 = "Landelijk",$B$20*'Pop Model - do not touch'!B24*'Rates - do not touch'!$C$37, IF($B$17 = "Industrieel",$B$20*'Pop Model - do not touch'!B24*'Rates - do not touch'!$C$38, IF($B$17 = "Alle",$B$20*'Pop Model - do not touch'!B24*'Rates - do not touch'!$C$39))))) -> 248.3325 | C26: =IF($B$17 = "Stedelijk",$B$20*'Pop Model - do not touch'!C24*'Rates - do not touch'!$C$35, IF($B$17 = "Halfstedelijk",$B$20*'Pop Model - do not touch'!C24*'Rates - do not touch'!$C$36, IF($B$17 = "Landelijk",$B$20*'Pop Model - do not touch'!C24*'Rates - do not touch'!$C$37, IF($B$17 = "Industrieel",$B$20*'Pop Model - do not touch'!C24*'Rates - do not touch'!$C$38, IF($B$17 = "Alle",$B$20*'Pop Model - do not touch'!C24*'Rates - do not touch'!$C$39))))) -> 240.882525 | D26: =IF($B$17 = "Stedelijk",$B$20*'Pop Model - do not touch'!D24*'Rates - do not touch'!$C$35, IF($B$17 = "Halfstedelijk",$B$20*'Pop Model - do not touch'!D24*'Rates - do not touch'!$C$36, IF($B$17 = "Landelijk",$B$20*'Pop Model - do not touch'!D24*'Rates - do not touch'!$C$37, IF($B$17 = "Industrieel",$B$20*'Pop Model - do not touch'!D24*'Rates - do not touch'!$C$38, IF($B$17 = "Alle",$B$20*'Pop Model - do not touch'!D24*'Rates - do not touch'!$C$39))))) -> 233.6560492 | E26: =IF($B$17 = "Stedelijk",$B$20*'Pop Model - do not touch'!E24*'Rates - do not touch'!$C$35, IF($B$17 = "Halfstedelijk",$B$20*'Pop Model - do not touch'!E24*'Rates - do not touch'!$C$36, IF($B$17 = "Landelijk",$B$20*'Pop Model - do not touch'!E24*'Rates - do not touch'!$C$37, IF($B$17 = "Industrieel",$B$20*'Pop Model - do not touch'!E24*'Rates - do not touch'!$C$38, IF($B$17 = "Alle",$B$20*'Pop Model - do not touch'!E24*'Rates - do not touch'!$C$39))))) -> 226.6463678 | F26: =IF($B$17 = "Stedelijk",$B$20*'Pop Model - do not touch'!F24*'Rates - do not touch'!$C$35, IF($B$17 = "Halfstedelijk",$B$20*'Pop Model - do not touch'!F24*'Rates - do not touch'!$C$36, IF($B$17 = "Landelijk",$B$20*'Pop Model - do not touch'!F24*'Rates - do not touch'!$C$37, IF($B$17 = "Industrieel",$B$20*'Pop Model - do not touch'!F24*'Rates - do not touch'!$C$38, IF($B$17 = "Alle",$B$20*'Pop Model - do not touch'!F24*'Rates - do not touch'!$C$39))))) -> 219.8469767 | G26: =IF($B$17 = "Stedelijk",$B$20*'Pop Model - do not touch'!G24*'Rates - do not touch'!$C$35, IF($B$17 = "Halfstedelijk",$B$20*'Pop Model - do not touch'!G24*'Rates - do not touch'!$C$36, IF($B$17 = "Landelijk",$B$20*'Pop Model - do not touch'!G24*'Rates - do not touch'!$C$37, IF($B$17 = "Industrieel",$B$20*'Pop Model - do not touch'!G24*'Rates - do not touch'!$C$38, IF($B$17 = "Alle",$B$20*'Pop Model - do not touch'!G24*'Rates - do not touch'!$C$39))))) -> 213.2515674 | H26: =IF($B$17 = "Stedelijk",$B$20*'Pop Model - do not touch'!H24*'Rates - do not touch'!$C$35, IF($B$17 = "Halfstedelijk",$B$20*'Pop Model - do not touch'!H24*'Rates - do not touch'!$C$36, IF($B$17 = "Landelijk",$B$20*'Pop Model - do not touch'!H24*'Rates - do not touch'!$C$37, IF($B$17 = "Industrieel",$B$20*'Pop Model - do not touch'!H24*'Rates - do not touch'!$C$38, IF($B$17 = "Alle",$B$20*'Pop Model - do not touch'!H24*'Rates - do not touch'!$C$39))))) -> 206.8540204 | I26: =IF($B$17 = "Stedelijk",$B$20*'Pop Model - do not touch'!I24*'Rates - do not touch'!$C$35, IF($B$17 = "Halfstedelijk",$B$20*'Pop Model - do not touch'!I24*'Rates - do not touch'!$C$36, IF($B$17 = "Landelijk",$B$20*'Pop Model - do not touch'!I24*'Rates - do not touch'!$C$37, IF($B$17 = "Industrieel",$B$20*'Pop Model - do not touch'!I24*'Rates - do not touch'!$C$38, IF($B$17 = "Alle",$B$20*'Pop Model - do not touch'!I24*'Rates - do not touch'!$C$39))))) -> 200.6483998 | J26: =IF($B$17 = "Stedelijk",$B$20*'Pop Model - do not touch'!J24*'Rates - do not touch'!$C$35, IF($B$17 = "Halfstedelijk",$B$20*'Pop Model - do not touch'!J24*'Rates - do not touch'!$C$36, IF($B$17 = "Landelijk",$B$20*'Pop Model - do not touch'!J24*'Rates - do not touch'!$C$37, IF($B$17 = "Industrieel",$B$20*'Pop Model - do not touch'!J24*'Rates - do not touch'!$C$38, IF($B$17 = "Alle",$B$20*'Pop Model - do not touch'!J24*'Rates - do not touch'!$C$39))))) -> 194.6289478 | K26: =IF($B$17 = "Stedelijk",$B$20*'Pop Model - do not touch'!K24*'Rates - do not touch'!$C$35, IF($B$17 = "Halfstedelijk",$B$20*'Pop Model - do not touch'!K24*'Rates - do not touch'!$C$36, IF($B$17 = "Landelijk",$B$20*'Pop Model - do not touch'!K24*'Rates - do not touch'!$C$37, IF($B$17 = "Industrieel",$B$20*'Pop Model - do not touch'!K24*'Rates - do not touch'!$C$38, IF($B$17 = "Alle",$B$20*'Pop Model - do not touch'!K24*'Rates - do not touch'!$C$39))))) -> 188.7900794 | L26: =IF($B$17 = "Stedelijk",$B$20*'Pop Model - do not touch'!L24*'Rates - do not touch'!$C$35, IF($B$17 = "Halfstedelijk",$B$20*'Pop Model - do not touch'!L24*'Rates - do not touch'!$C$36, IF($B$17 = "Landelijk",$B$20*'Pop Model - do not touch'!L24*'Rates - do not touch'!$C$37, IF($B$17 = "Industrieel",$B$20*'Pop Model - do not touch'!L24*'Rates - do not touch'!$C$38, IF($B$17 = "Alle",$B$20*'Pop Model - do not touch'!L24*'Rates - do not touch'!$C$39))))) -> 183.126377 | M26: EP: berekening voor jaar 0 (10-11-18)
A27: WelfareSC | B27: =IF($B$17="Stedelijk",'Pop Model - do not touch'!B28*'Rates - do not touch'!$D$35,IF($B$17="Halfstedelijk",'Pop Model - do not touch'!B28*'Rates - do not touch'!$D$36,IF($B$17="Landelijk",'Pop Model - do not touch'!B28*'Rates - do not touch'!$D$37,IF($B$17="Industrieel",'Pop Model - do not touch'!B28*'Rates - do not touch'!$D$38,IF($B$17="Alle",'Pop Model - do not touch'!B28*'Rates - do not touch'!$D$39))))) -> 2092.08 | C27: =IF($B$17="Stedelijk",'Pop Model - do not touch'!C28*'Rates - do not touch'!$D$35,IF($B$17="Halfstedelijk",'Pop Model - do not touch'!C28*'Rates - do not touch'!$D$36,IF($B$17="Landelijk",'Pop Model - do not touch'!C28*'Rates - do not touch'!$D$37,IF($B$17="Industrieel",'Pop Model - do not touch'!C28*'Rates - do not touch'!$D$38,IF($B$17="Alle",'Pop Model - do not touch'!C28*'Rates - do not touch'!$D$39))))) -> 1980.085838 | D27: =IF($B$17="Stedelijk",'Pop Model - do not touch'!D28*'Rates - do not touch'!$D$35,IF($B$17="Halfstedelijk",'Pop Model - do not touch'!D28*'Rates - do not touch'!$D$36,IF($B$17="Landelijk",'Pop Model - do not touch'!D28*'Rates - do not touch'!$D$37,IF($B$17="Industrieel",'Pop Model - do not touch'!D28*'Rates - do not touch'!$D$38,IF($B$17="Alle",'Pop Model - do not touch'!D28*'Rates - do not touch'!$D$39))))) -> 2363.39613 | E27: =IF($B$17="Stedelijk",'Pop Model - do not touch'!E28*'Rates - do not touch'!$D$35,IF($B$17="Halfstedelijk",'Pop Model - do not touch'!E28*'Rates - do not touch'!$D$36,IF($B$17="Landelijk",'Pop Model - do not touch'!E28*'Rates - do not touch'!$D$37,IF($B$17="Industrieel",'Pop Model - do not touch'!E28*'Rates - do not touch'!$D$38,IF($B$17="Alle",'Pop Model - do not touch'!E28*'Rates - do not touch'!$D$39))))) -> 2806.915393 | F27: =IF($B$17="Stedelijk",'Pop Model - do not touch'!F28*'Rates - do not touch'!$D$35,IF($B$17="Halfstedelijk",'Pop Model - do not touch'!F28*'Rates - do not touch'!$D$36,IF($B$17="Landelijk",'Pop Model - do not touch'!F28*'Rates - do not touch'!$D$37,IF($B$17="Industrieel",'Pop Model - do not touch'!F28*'Rates - do not touch'!$D$38,IF($B$17="Alle",'Pop Model - do not touch'!F28*'Rates - do not touch'!$D$39))))) -> 3336.837729 | G27: =IF($B$17="Stedelijk",'Pop Model - do not touch'!G28*'Rates - do not touch'!$D$35,IF($B$17="Halfstedelijk",'Pop Model - do not touch'!G28*'Rates - do not touch'!$D$36,IF($B$17="Landelijk",'Pop Model - do not touch'!G28*'Rates - do not touch'!$D$37,IF($B$17="Industrieel",'Pop Model - do not touch'!G28*'Rates - do not touch'!$D$38,IF($B$17="Alle",'Pop Model - do not touch'!G28*'Rates - do not touch'!$D$39))))) -> 3990.571332 | H27: =IF($B$17="Stedelijk",'Pop Model - do not touch'!H28*'Rates - do not touch'!$D$35,IF($B$17="Halfstedelijk",'Pop Model - do not touch'!H28*'Rates - do not touch'!$D$36,IF($B$17="Landelijk",'Pop Model - do not touch'!H28*'Rates - do not touch'!$D$37,IF($B$17="Industrieel",'Pop Model - do not touch'!H28*'Rates - do not touch'!$D$38,IF($B$17="Alle",'Pop Model - do not touch'!H28*'Rates - do not touch'!$D$39))))) -> 4812.964075 | I27: =IF($B$17="Stedelijk",'Pop Model - do not touch'!I28*'Rates - do not touch'!$D$35,IF($B$17="Halfstedelijk",'Pop Model - do not touch'!I28*'Rates - do not touch'!$D$36,IF($B$17="Landelijk",'Pop Model - do not touch'!I28*'Rates - do not touch'!$D$37,IF($B$17="Industrieel",'Pop Model - do not touch'!I28*'Rates - do not touch'!$D$38,IF($B$17="Alle",'Pop Model - do not touch'!I28*'Rates - do not touch'!$D$39))))) -> 5865.792543 | J27: =IF($B$17="Stedelijk",'Pop Model - do not touch'!J28*'Rates - do not touch'!$D$35,IF($B$17="Halfstedelijk",'Pop Model - do not touch'!J28*'Rates - do not touch'!$D$36,IF($B$17="Landelijk",'Pop Model - do not touch'!J28*'Rates - do not touch'!$D$37,IF($B$17="Industrieel",'Pop Model - do not touch'!J28*'Rates - do not touch'!$D$38,IF($B$17="Alle",'Pop Model - do not touch'!J28*'Rates - do not touch'!$D$39))))) -> 7231.564665 | K27: =IF($B$17="Stedelijk",'Pop Model - do not touch'!K28*'Rates - do not touch'!$D$35,IF($B$17="Halfstedelijk",'Pop Model - do not touch'!K28*'Rates - do not touch'!$D$36,IF($B$17="Landelijk",'Pop Model - do not touch'!K28*'Rates - do not touch'!$D$37,IF($B$17="Industrieel",'Pop Model - do not touch'!K28*'Rates - do not touch'!$D$38,IF($B$17="Alle",'Pop Model - do not touch'!K28*'Rates - do not touch'!$D$39))))) -> 9017.321074 | L27: =IF($B$17="Stedelijk",'Pop Model - do not touch'!L28*'Rates - do not touch'!$D$35,IF($B$17="Halfstedelijk",'Pop Model - do not touch'!L28*'Rates - do not touch'!$D$36,IF($B$17="Landelijk",'Pop Model - do not touch'!L28*'Rates - do not touch'!$D$37,IF($B$17="Industrieel",'Pop Model - do not touch'!L28*'Rates - do not touch'!$D$38,IF($B$17="Alle",'Pop Model - do not touch'!L28*'Rates - do not touch'!$D$39))))) -> 11367.91034 | M27: EP: berekening voor jaar 0 (10-11-18)
A29: WelfareScore | B29: =(SUM(B26:B27)/('Pop Model - do not touch'!B28+'Pop Model - do not touch'!B24))*100 -> 191.6799754 | C29: =(SUM(C26:C27)/('Pop Model - do not touch'!C28+'Pop Model - do not touch'!C24))*100 -> 191.7288669 | D29: =(SUM(D26:D27)/('Pop Model - do not touch'!D28+'Pop Model - do not touch'!D24))*100 -> 191.3452179 | E29: =(SUM(E26:E27)/('Pop Model - do not touch'!E28+'Pop Model - do not touch'!E24))*100 -> 191.0297861 | F29: =(SUM(F26:F27)/('Pop Model - do not touch'!F28+'Pop Model - do not touch'!F24))*100 -> 190.7638775 | G29: =(SUM(G26:G27)/('Pop Model - do not touch'!G28+'Pop Model - do not touch'!G24))*100 -> 190.5359971 | H29: =(SUM(H26:H27)/('Pop Model - do not touch'!H28+'Pop Model - do not touch'!H24))*100 -> 190.3407006 | I29: =(SUM(I26:I27)/('Pop Model - do not touch'!I28+'Pop Model - do not touch'!I24))*100 -> 190.1741973 | J29: =(SUM(J26:J27)/('Pop Model - do not touch'!J28+'Pop Model - do not touch'!J24))*100 -> 190.0338335 | K29: =(SUM(K26:K27)/('Pop Model - do not touch'!K28+'Pop Model - do not touch'!K24))*100 -> 189.9174472 | L29: =(SUM(L26:L27)/('Pop Model - do not touch'!L28+'Pop Model - do not touch'!L24))*100 -> 189.8225607 | M29: EP: in B29 stond handmatig '190' ingetypt, zonder berekening. Lijkt me dat toch toch per startpopulatie verschillend is? Daarom zelfde formule als C29 toegepast. (10-11-18)
A30: wijziging tov voorgaande jaar | B30: 1 | C30: =(C29/B29)*100 -> 100.0255068 | D30: =(D29/C29)*100 -> 99.79990027 | E30: 99.8351504 | F30: 99.86080253 | G30: 99.88054325 | H30: 99.89750149 | I30: 99.91252356 | J30: 99.92619196 | K30: 99.93875496 | L30: 99.95003805
A31: % verandering in welzijnsindex tov start | C31: =((C29/$B$29)*100)-100 -> 0.02550681036 | D31: =((D29/$B$29)*100)-100 -> -0.1746439541 | E31: -0.3392056563 | F31: -0.4779309646 | G31: -0.5968167932 | H31: -0.6987035747 | I31: -0.7855688153 | J31: -0.8587970432 | K31: -0.9195161134 | L31: -0.9690186542
A32: % verandering in welzijnsindex tov voorgaande jaar | C32: =((C29/B29)*100)-100 -> 0.02550681036 | D32: =((D29/C29)*100)-100 -> -0.2000997254 | E32: -0.164849602 | F32: -0.139197474 | G32: -0.1194567494 | H32: -0.1024985098 | I32: -0.08747644168 | J32: -0.07380804078 | K32: -0.06124504085 | L32: -0.04996194893

Sheet Rates - do not touch (hidden)
A1: Parameters
A2: Human population | B2: =Dashboard!D4 -> 33141 | D2: Can maybe change this so that it is municipality? If there is some kind of lookup table where people select their municipality and it automatically gives the population for that municipality?
A4: StartHC | B4: =ROUND(0.186*$B$2,0) -> 6164
A5: StartBSC_F | B5: =ROUND(($B$2/30)*0.37*0.5,0) -> 204
A6: StartNBSC | B6: =ROUND(($B$2/30)*(1-0.37)+B5,0) -> 900 | D6: Non breeding cats plus males who could be breeding but don’t contribute to growth rate
A7: StartTNRS | B7: 0
A8: StartCC | B8: =Dashboard!D8 -> 117
A10: Prop HC breeding | B10: =Dashboard!D11 -> 0.12 | D10: 10 % of all housecats
A11: HC death rate per year | B11: 0.23 | D11: From literature
A12: HC abandonment | B12: =Dashboard!D12 -> 0.05
A13: HC recovery rate | B13: =Dashboard!D13 -> 0.05
A14: HC growth rate | B14: =3.82*1.63*0.7*('Rates - do not touch'!$B$10*0.5)-'Rates - do not touch'!$B$11-($B$12*$B$13) -> 0.0290172
A16: Proportion B_SC breeding | B16: =Dashboard!D7/100 -> 0.37 | D16: EP (10-11-18): dit nu gebruikt in formules in tab pop model ipv handmatig getypte 0,37
A17: B_SC breeding | B17: 0.5 | D17: Only concerned with females, so half the individuals can breed
A18: B_SC death rate | B18: 0.34
A19: B_SC growth rate | B19: =(3.82*1.63*0.44*$B$16*'Rates - do not touch'!$B$17)*(1-$B$18) -> 0.3345178584
A21: NB_SC death rate | B21: 0.34
A23: CC growth rate | B23: =0.2-B24 -> -0.03 | D23: proportion of new individuals which turn up according to feeder survey
A24: CC death rate | B24: =0.23 -> 0.23 | D24: from dataoverzicht sheet
A27: TNR rate | B27: =Dashboard!D17 -> 0 | D27: Rates of different treatments - can be changed here
A28: SHEL rate | B28: =Dashboard!D19 -> 0
A29: EUTH rate | B29: =Dashboard!D20 -> 0
A30: CC rate | B30: =Dashboard!D18 -> 0
A32: Proportion strays being trapped | B32: =Dashboard!D15 -> 0
A34: Habitats | B34: WelfareHC | C34: WelfareCC | D34: WelfareSC | E34: FreeRoamHC | F34: FreeRoamCC | G34: FreeRoamSC | H34: PropHC | I34: PropCC | J34: PropSC
A35: Stedelijk | B35: 3.12 | C35: 2.08 | D35: 1.75 | E35: 0.56 | F35: 1 | G35: 1 | H35: 0.24 | I35: 0.39 | J35: 0.25
A36: Halfstedelijk | B36: 2.54 | C36: 1.96 | D36: 1.79 | E36: 0.78 | F36: 1 | G36: 1 | H36: 0.6 | I36: 0.21 | J36: 0.25
A37: Landelijk | B37: 3.12 | C37: 2.12 | D37: 1.96 | E37: 0.75 | F37: 1 | G37: 1 | H37: 0.16 | I37: 0.28 | J37: 0.25
A38: Industrieel | B38: 3 | C38: 2.33 | D38: 2.08 | E38: 0 | F38: 1 | G38: 1 | H38: 0 | I38: 0.12 | J38: 0.25
A39: Alle | B39: =AVERAGE(B35:B38) -> 2.945 | C39: =AVERAGE(C35:C38) -> 2.1225 | D39: 1.895 | E39: 0.5225 | F39: 1 | G39: 1 | H39: =SUM(H35:H38) -> 1 | I39: =SUM(I35:I38) -> 1 | J39: 1
A41: Types of treatment
A42: Terugplaatsen
A43: Koloniekat
A44: Alle
A45: Niet

Sheet Cluster analysis (hidden)
A1: Municipality | B1: Code | C1: Cluster
A2: ANTWERPEN | B2: 11002 | C2: 3
A3: BOECHOUT | B3: 11004 | C3: 3
A4: BORSBEEK | B4: 11007 | C4: 3
A5: BRASSCHAAT | B5: 11008 | C5: 3
A6: BRECHT | B6: 11009 | C6: 2
A7: EDEGEM | B7: 11013 | C7: 3
A8: HEMIKSEM | B8: 11018 | C8: 3
A9: HOVE | B9: 11021 | C9: 3
A10: KALMTHOUT | B10: 11022 | C10: 1
A11: KAPELLEN | B11: 11023 | C11: 3
A12: LINT | B12: 11025 | C12: 3
A13: MORTSEL | B13: 11029 | C13: 3
A14: NIEL | B14: 11030 | C14: 3
A15: RANST | B15: 11035 | C15: 3
A16: RUMST | B16: 11037 | C16: 3
A17: SCHILDE | B17: 11039 | C17: 3
A18: SCHOTEN | B18: 11040 | C18: 3
A19: WIJNEGEM | B19: 11050 | C19: 3
A20: WOMMELGEM | B20: 11052 | C20: 3
A21: WUUSTWEZEL | B21: 11053 | C21: 4
A22: ZANDHOVEN | B22: 11054 | C22: 3
A23: ZOERSEL | B23: 11055 | C23: 1
A24: ZWIJNDRECHT | B24: 11056 | C24: 3
A25: MALLE | B25: 11057 | C25: 1
A26: BERLAAR | B26: 12002 | C26: 3
A27: BONHEIDEN | B27: 12005 | C27: 3
A28: BORNEM | B28: 12007 | C28: 3
A29: DUFFEL | B29: 12009 | C29: 3
A30: HEIST-OP-DEN-BERG | B30: 12014 | C30: 1
A31: LIER | B31: 12021 | C31: 1
A32: MECHELEN | B32: 12025 | C32: 1
A33: NIJLEN | B33: 12026 | C33: 3
A34: PUURS | B34: 12030 | C34: 3
A35: SINT-AMANDS | B35: 12034 | C35: 3
A36: SINT-KATELIJNE-WAVER | B36: 12035 | C36: 3
A37: WILLEBROEK | B37: 12040 | C37: 3
A38: ARENDONK | B38: 13001 | C38: 1
A39: BALEN | B39: 13003 | C39: 1
A40: BEERSE | B40: 13004 | C40: 3
A41: DESSEL | B41: 13006 | C41: 3
A42: GEEL | B42: 13008 | C42: 2
A43: GROBBENDONK | B43: 13010 | C43: 3
A44: HERENTHOUT | B44: 13012 | C44: 3
A45: HERSELT | B45: 13013 | C45: 1
A46: HOOGSTRATEN | B46: 13014 | C46: 4
A47: HULSHOUT | B47: 13016 | C47: 3
A48: KASTERLEE | B48: 13017 | C48: 1
A49: MEERHOUT | B49: 13021 | C49: 3
A50: MERKSPLAS | B50: 13023 | C50: 1
A51: OLEN | B51: 13029 | C51: 3
A52: RETIE | B52: 13036 | C52: 1
A53: RIJKEVORSEL | B53: 13037 | C53: 1
A54: TURNHOUT | B54: 13040 | C54: 1
A55: VORSELAAR | B55: 13044 | C55: 3
A56: VOSSELAAR | B56: 13046 | C56: 3
A57: WESTERLO | B57: 13049 | C57: 2
A58: LAAKDAL | B58: 13053 | C58: 3
A59: ASSE | B59: 23002 | C59: 1
A60: BEVER | B60: 23009 | C60: 3
A61: DILBEEK | B61: 23016 | C61: 3
A62: GALMAARDEN | B62: 23023 | C62: 3
A63: GOOIK | B63: 23024 | C63: 1
A64: GRIMBERGEN | B64: 23025 | C64: 3
A65: HALLE | B65: 23027 | C65: 3
A66: HERNE | B66: 23032 | C66: 1
A67: HOEILAART | B67: 23033 | C67: 3
A68: KAMPENHOUT | B68: 23038 | C68: 3
A69: KAPELLE-OP-DEN-BOS | B69: 23039 | C69: 3
A70: LIEDEKERKE | B70: 23044 | C70: 3
A71: LONDERZEEL | B71: 23045 | C71: 1
A72: MACHELEN | B72: 23047 | C72: 3
A73: MERCHTEM | B73: 23052 | C73: 2
A74: OVERIJSE | B74: 23062 | C74: 3
A75: SINT-PIETERS-LEEUW | B75: 23077 | C75: 3
A76: TERT | B76: 23086 | C76: 3
A77: VILVOORDE | B77: 23088 | C77: 3
A78: ZAVENTEM | B78: 23094 | C78: 3
A79: ZEMST | B79: 23096 | C79: 1
A80: ROOSDAAL | B80: 23097 | C80: 3
A81: LINKEBEEK | B81: 23100 | C81: 3
A82: WEMMEL | B82: 23102 | C82: 3
A83: AFFLIGEM | B83: 23105 | C83: 3
A84: AARSCHOT | B84: 24001 | C84: 1
A85: BEKKEVOORT | B85: 24008 | C85: 1
A86: BERTEM | B86: 24009 | C86: 1
A87: BIERBEEK | B87: 24011 | C87: 3
A88: DIEST | B88: 24020 | C88: 1
A89: HAACHT | B89: 24033 | C89: 3
A90: HOEGAARDEN | B90: 24041 | C90: 2
A91: HOLSBEEK | B91: 24043 | C91: 3
A92: KORTEKEN | B92: 24054 | C92: 1
A93: LANDEN | B93: 24059 | C93: 2
A94: OUD-HEVERLEE | B94: 24086 | C94: 3
A95: TERVUREN | B95: 24104 | C95: 3
A96: ZOUTLEEUW | B96: 24130 | C96: 3
A97: LINTER | B97: 24133 | C97: 3
A98: SCHERPENHEUVEL-ZICHEM | B98: 24134 | C98: 1
A99: TIELT-WINGE | B99: 24135 | C99: 2
A100: GLABBEEK | B100: 24137 | C100: 3
A101: BEERNEM | B101: 31003 | C101: 2
A102: BLANKENBERGE | B102: 31004 | C102: 3
A103: BRUGGE | B103: 31005 | C103: 1
A104: DAMME | B104: 31006 | C104: 2
A105: JABBEKE | B105: 31012 | C105: 1
A106: TORHOUT | B106: 31033 | C106: 1
A107: ZUIENKERKE | B107: 31042 | C107: 1
A108: KNOKKE-HEIST | B108: 31043 | C108: 2
A109: DIKSMUIDE | B109: 32003 | C109: 4
A110: KOEKELARE | B110: 32010 | C110: 1
A111: KORTEMARK | B111: 32011 | C111: 2
A112: LO-RENINGE | B112: 32030 | C112: 2
A113: IEPER | B113: 33011 | C113: 4
A114: MESEN | B114: 33016 | C114: 3
A115: POPERINGE | B115: 33021 | C115: 4
A116: ZONNEBEKE | B116: 33037 | C116: 2
A117: ANZEGEM | B117: 34002 | C117: 1
A118: AVELGEM | B118: 34003 | C118: 3
A119: DEERLIJK | B119: 34009 | C119: 3
A120: HARELBEKE | B120: 34013 | C120: 3
A121: KORTRIJK | B121: 34022 | C121: 2
A122: KUURNE | B122: 34023 | C122: 3
A123: LENDELEDE | B123: 34025 | C123: 3
A124: MENEN | B124: 34027 | C124: 3
A125: WAREGEM | B125: 34040 | C125: 1
A126: BREDENE | B126: 35002 | C126: 3
A127: ICHTEGEM | B127: 35006 | C127: 1
A128: MIDDELKERKE | B128: 35011 | C128: 4
A129: OOSTENDE | B129: 35013 | C129: 3
A130: OUDENBURG | B130: 35014 | C130: 3
A131: HOOGLEDE | B131: 36006 | C131: 1
A132: INGELMUNSTER | B132: 36007 | C132: 3
A133: IZEGEM | B133: 36008 | C133: 3
A134: MOORSLEDE | B134: 36012 | C134: 1
A135: ROESELARE | B135: 36015 | C135: 1
A136: STADEN | B136: 36019 | C136: 2
A137: MEULEBEKE | B137: 37007 | C137: 1
A138: OOSTROZEBEKE | B138: 37010 | C138: 3
A139: PITTEM | B139: 37011 | C139: 1
A140: RUISELEDE | B140: 37012 | C140: 1
A141: WIELSBEKE | B141: 37017 | C141: 3
A142: WINGENE | B142: 37018 | C142: 2
A143: ARDOOIE | B143: 37020 | C143: 1
A144: ALVERINGEM | B144: 38002 | C144: 2
A145: KOKSIJDE | B145: 38014 | C145: 1
A146: NIEUWPOORT | B146: 38016 | C146: 1
A147: AALST | B147: 41002 | C147: 3
A148: GERAARDSBERGEN | B148: 41018 | C148: 2
A149: HAALTERT | B149: 41024 | C149: 3
A150: LEDE | B150: 41034 | C150: 3
A151: NINOVE | B151: 41048 | C151: 1
A152: SINT-LIEVENS-HOUTEM | B152: 41063 | C152: 3
A153: ZOTTEGEM | B153: 41081 | C153: 1
A154: ERPE-MERE | B154: 41082 | C154: 3
A155: BUGGENHOUT | B155: 42004 | C155: 3
A156: DENDERMONDE | B156: 42006 | C156: 1
A157: HAMME | B157: 42008 | C157: 3
A158: LAARNE | B158: 42010 | C158: 1
A159: LEBBEKE | B159: 42011 | C159: 3
A160: WAASMUNSTER | B160: 42023 | C160: 3
A161: WAASMUNSTER | B161: 42023 | C161: 3
A162: WETTEREN | B162: 42025 | C162: 1
A163: WICHELEN | B163: 42026 | C163: 3
A164: ZELE | B164: 42028 | C164: 1
A165: ASSENEDE | B165: 43002 | C165: 4
A166: EEKLO | B166: 43005 | C166: 1
A167: KAPRIJKE | B167: 43007 | C167: 1
A168: MALDEGEM | B168: 43010 | C168: 4
A169: SINT-LAUREINS | B169: 43014 | C169: 2
A170: ZELZATE | B170: 43018 | C170: 3
A171: DESTELBERGEN | B171: 44013 | C171: 3
A172: EVERGEM | B172: 44019 | C172: 2
A173: GENT | B173: 44021 | C173: 1
A174: LOCHRISTI | B174: 44034 | C174: 2
A175: MELLE | B175: 44040 | C175: 3
A176: MERELBEKE | B176: 44043 | C176: 3
A177: ZARETH | B177: 44048 | C177: 1
A178: NEVELE | B178: 44049 | C178: 2
A179: ZOMERGEM | B179: 44080 | C179: 1
A180: ZULTE | B180: 44081 | C180: 1
A181: OUDEARDE | B181: 45035 | C181: 2
A182: RONSE | B182: 45041 | C182: 3
A183: ZINGEM | B183: 45057 | C183: 3
A184: BRAKEL | B184: 45059 | C184: 1
A185: KLUISBERGEN | B185: 45060 | C185: 3
A186: WORTEGEM-PETEGEM | B186: 45061 | C186: 1
A187: LIERDE | B187: 45063 | C187: 3
A188: ZWALM | B188: 45065 | C188: 1
A189: BEVEREN | B189: 46003 | C189: 4
A190: KRUIBEKE | B190: 46013 | C190: 3
A191: LOKEREN | B191: 46014 | C191: 2
A192: SINT-GILLIS-WAAS | B192: 46020 | C192: 2
A193: SINT-NIKLAAS | B193: 46021 | C193: 2
A194: TEMSE | B194: 46025 | C194: 1
A195: AS | B195: 71002 | C195: 3
A196: BERINGEN | B196: 71004 | C196: 3
A197: DIEPENBEEK | B197: 71011 | C197: 3
A198: GENK | B198: 71016 | C198: 3
A199: GINGELOM | B199: 71017 | C199: 2
A200: HALEN | B200: 71020 | C200: 3
... 26 more rows
